Departmental Family,Entity,Date,Expense type,Expense area,Description,Supplier,Transaction Number,Amount
Department for Education,DEPARTMENT FOR EDUCATION,04/09/2015,ICT,Information Technology Group,ICT Services,REDWEB,4000215774,187968.96
Department for Education,DEPARTMENT FOR EDUCATION,08/09/2015,Grants,Children's Services and Departmental Strategy Safeguarding Group,Current grants paid to organisations including arms length bodies and educational establishments,OFFICE OF THE CHILDRENS COMMISSIONER,2001153,441481.09
Department for Education,DEPARTMENT FOR EDUCATION,09/09/2015,Miscellaneous Expenditure,Finance and Commercial Group,"Payment of VAT due from July 2015 VAT return as total amount invoiced exceeded the amount spent, resulting in a net amount payable to HMRC.",HM CUSTOMS & EXCISE,2001154,6117751.72
Department for Education,DEPARTMENT FOR EDUCATION,18/09/2015,Grants,Assessment and Curriculum and General Qualifications Group,Current grant funding to other government departments for DfE's contribution to jointly funded programmes ,DEPARTMENT FOR CULTURE MEDIA & SPORT,2001158,19158560.50
Department for Education,DEPARTMENT FOR EDUCATION,18/09/2015,Grants,Assessment and Curriculum and General Qualifications Group,Current grant funding to other government departments for DfE's contribution to jointly funded programmes ,DEPARTMENT FOR CULTURE MEDIA & SPORT,2001158,1021880.00
Department for Education,DEPARTMENT FOR EDUCATION,29/09/2015,Funding to pay Teachers' Pensions,Teachers and Teaching Group,Pension related payments to retired teachers where liability has transferred to SoS,TPS GOVERNMENT BANKING SERVICE ACCOUNT,2001161,733514.79
Department for Education,DEPARTMENT FOR EDUCATION,29/09/2015,Funding to pay Teachers' Pensions,Teachers and Teaching Group,Pension related payments to retired teachers where liability has transferred to SoS,TPS GOVERNMENT BANKING SERVICE ACCOUNT,2001162,280882.51
Department for Education,DEPARTMENT FOR EDUCATION,29/09/2015,Funding to pay Teachers' Pensions,Teachers and Teaching Group,Pension related payments to retired teachers where liability has transferred to SoS,TPS GOVERNMENT BANKING SERVICE ACCOUNT,2001162,7031.89
Department for Education,DEPARTMENT FOR EDUCATION,09/09/2015,Programme costs,Assessment and Curriculum and General Qualifications Group,Funding to deliver policies (excluding consultancy) paid to third parties via a service delivery contract,EUROPEAN SCHOOLNET,3000344,28584.49
Department for Education,STANDARDS AND TESTING AGENCY,15/09/2015,Professional Services Other,Test Development Division,"Fees / expenses of professionals, for example to implement advice or changes",AUSTRALIAN COUNCIL FOR EDUCATION RESEARCH,3000345,46251.50
Department for Education,STANDARDS AND TESTING AGENCY,23/09/2015,Professional Services Other,Test Development Division,"Fees / expenses of professionals, for example to implement advice or changes",AUSTRALIAN COUNCIL FOR EDUCATION RESEARCH,3000346,30773.00
Department for Education,NATIONAL COLLEGE FOR TEACHING AND LEADERSHIP AGENCY,01/09/2015,Grants,Delivery Directorate,Grants to educational establishments,NORTHAMPTON SCHOOL FOR BOYS,4000215327,26250.00
Department for Education,NATIONAL COLLEGE FOR TEACHING AND LEADERSHIP AGENCY,01/09/2015,Grants,Delivery Directorate,Grants to educational establishments,NORTHAMPTON SCHOOL FOR BOYS,4000215327,40000.00
Department for Education,NATIONAL COLLEGE FOR TEACHING AND LEADERSHIP AGENCY,01/09/2015,Grants,Delivery Directorate,Grants to educational establishments,PAINSLEY CATHOLIC ACADEMY,4000215328,80000.00
Department for Education,DEPARTMENT FOR EDUCATION,01/09/2015,Programme costs,Children's Services and Departmental Strategy Safeguarding Group,Funding to deliver policies (excluding consultancy) paid to third parties via a service delivery contract,DELOITTE MSC LTD,4000215331,120411.58
Department for Education,DEPARTMENT FOR EDUCATION,01/09/2015,Grants,"Childcare, Special Educational Needs and Children's Strategy Group",Grants to third sector organisations / not for profit organisations and other businesses,THE FAMILY FUND TRUST,4000215332,2396762.00
Department for Education,NATIONAL COLLEGE FOR TEACHING AND LEADERSHIP AGENCY,01/09/2015,Grants,Delivery Directorate,Grants to educational establishments,ALTRINCHAM GRAMMAR SCHOOL FOR GIRLS,4000215335,26930.00
Department for Education,NATIONAL COLLEGE FOR TEACHING AND LEADERSHIP AGENCY,01/09/2015,Grants,Delivery Directorate,Grants to educational establishments,ALTRINCHAM GRAMMAR SCHOOL FOR GIRLS,4000215335,115000.00
Department for Education,NATIONAL COLLEGE FOR TEACHING AND LEADERSHIP AGENCY,01/09/2015,Grants,Delivery Directorate,Grants to educational establishments,ALTRINCHAM GRAMMAR SCHOOL FOR GIRLS,4000215335,6000.00
Department for Education,DEPARTMENT FOR EDUCATION,01/09/2015,Grants,"Childcare, Special Educational Needs and Children's Strategy Group",Grants to third sector organisations / not for profit organisations and other businesses,CONTACT A FAMILY,4000215342,57660.11
Department for Education,NATIONAL COLLEGE FOR TEACHING AND LEADERSHIP AGENCY,01/09/2015,Grants,Delivery Directorate,Grants to educational establishments,VICTORIA INFANT & NURSERY SCHOOL TS ACCOUNT,4000215349,40000.00
Department for Education,NATIONAL COLLEGE FOR TEACHING AND LEADERSHIP AGENCY,01/09/2015,Grants,Delivery Directorate,Grants to educational establishments,VICTORIA INFANT & NURSERY SCHOOL TS ACCOUNT,4000215349,6000.00
Department for Education,NATIONAL COLLEGE FOR TEACHING AND LEADERSHIP AGENCY,01/09/2015,Grants,Delivery Directorate,Grants to educational establishments,TRINITY ACADEMY HALIFAX,4000215360,70000.00
Department for Education,NATIONAL COLLEGE FOR TEACHING AND LEADERSHIP AGENCY,01/09/2015,Grants,Delivery Directorate,Grants to educational establishments,CARMEL COLLEGE A CATHOLIC ACADEMY,4000215365,80000.00
Department for Education,NATIONAL COLLEGE FOR TEACHING AND LEADERSHIP AGENCY,01/09/2015,Grants,Delivery Directorate,Grants to educational establishments,ST GEORGES COFE PRIMARY SCHOOL CHORLEY,4000215367,50000.00
Department for Education,NATIONAL COLLEGE FOR TEACHING AND LEADERSHIP AGENCY,01/09/2015,Grants,Delivery Directorate,Grants to educational establishments,ST GEORGES COFE PRIMARY SCHOOL CHORLEY,4000215367,6000.00
Department for Education,DEPARTMENT FOR EDUCATION,01/09/2015,Grants,Adoption and Children in Care Division,Grants to third sector organisations / not for profit organisations and other businesses,THE SHARE FOUNDATION 3RD PARTY TRUST,4000215370,48000.00
Department for Education,NATIONAL COLLEGE FOR TEACHING AND LEADERSHIP AGENCY,01/09/2015,Grants,Delivery Directorate,Grants to educational establishments,EARLY FOUNDATIONS TEACHING SCHOOL,4000215375,50000.00
Department for Education,NATIONAL COLLEGE FOR TEACHING AND LEADERSHIP AGENCY,01/09/2015,Grants,Delivery Directorate,Grants to educational establishments,EARLY FOUNDATIONS TEACHING SCHOOL,4000215375,6000.00
Department for Education,NATIONAL COLLEGE FOR TEACHING AND LEADERSHIP AGENCY,01/09/2015,Grants,Delivery Directorate,Grants to educational establishments,LEE CHAPEL ACADEMY TRUST - TS ACCOUNT,4000215381,40000.00
Department for Education,NATIONAL COLLEGE FOR TEACHING AND LEADERSHIP AGENCY,01/09/2015,Grants,Delivery Directorate,Grants to educational establishments,LEE CHAPEL ACADEMY TRUST - TS ACCOUNT,4000215381,6000.00
Department for Education,NATIONAL COLLEGE FOR TEACHING AND LEADERSHIP AGENCY,01/09/2015,Grants,Delivery Directorate,Grants to educational establishments,CHURCHILL COMMUNITY COLLEGE,4000215386,80000.00
Department for Education,NATIONAL COLLEGE FOR TEACHING AND LEADERSHIP AGENCY,01/09/2015,Grants,Delivery Directorate,Grants to educational establishments,WEYDON SCHOOL,4000215388,30000.00
Department for Education,NATIONAL COLLEGE FOR TEACHING AND LEADERSHIP AGENCY,01/09/2015,Grants,Delivery Directorate,Grants to educational establishments,WEYDON SCHOOL,4000215388,40000.00
Department for Education,NATIONAL COLLEGE FOR TEACHING AND LEADERSHIP AGENCY,01/09/2015,Grants,Delivery Directorate,Grants to educational establishments,WEYDON SCHOOL,4000215388,6000.00
Department for Education,NATIONAL COLLEGE FOR TEACHING AND LEADERSHIP AGENCY,01/09/2015,Grants,Delivery Directorate,Grants to educational establishments,FOX PRIMARY SCHOOL,4000215397,75000.00
Department for Education,DEPARTMENT FOR EDUCATION,01/09/2015,Communications,Information Technology Group,Digital media and web production,PROLOG,4000215408,36887.40
Department for Education,NATIONAL COLLEGE FOR TEACHING AND LEADERSHIP AGENCY,01/09/2015,Grants,Delivery Directorate,Grants to educational establishments,NOTRE DAME HIGH SCHOOL TS ACCOUNT,4000215409,70000.00
Department for Education,NATIONAL COLLEGE FOR TEACHING AND LEADERSHIP AGENCY,01/09/2015,Grants,Delivery Directorate,Grants to educational establishments,SAMUEL WARD ACADEMY TRUST,4000215410,50000.00
Department for Education,NATIONAL COLLEGE FOR TEACHING AND LEADERSHIP AGENCY,01/09/2015,Grants,Delivery Directorate,Grants to educational establishments,SAMUEL WARD ACADEMY TRUST,4000215410,6000.00
Department for Education,NATIONAL COLLEGE FOR TEACHING AND LEADERSHIP AGENCY,01/09/2015,Professional Services Other,Delivery Directorate,"Fees / expenses of professionals, for example to implement advice or changes",FUTURE LEADERS LTD,4000215411,130000.00
Department for Education,NATIONAL COLLEGE FOR TEACHING AND LEADERSHIP AGENCY,02/09/2015,Grants,Operations Directorate,Grants to educational establishments,UNIVERSITY OF HULL,4000215419,186029.82
Department for Education,NATIONAL COLLEGE FOR TEACHING AND LEADERSHIP AGENCY,02/09/2015,Grants,Delivery Directorate,Grants to educational establishments,UNIVERSITY OF HULL,4000215419,11229.75
Department for Education,DEPARTMENT FOR EDUCATION,02/09/2015,Grants,Free School Group,Grants to educational establishments,TWYFORD CE ACADEMIES TRUST,4000215420,30000.00
Department for Education,NATIONAL COLLEGE FOR TEACHING AND LEADERSHIP AGENCY,02/09/2015,Grants,Operations Directorate,Grants to educational establishments,HARRIS CITY ACADEMY,4000215422,27127.44
Department for Education,NATIONAL COLLEGE FOR TEACHING AND LEADERSHIP AGENCY,02/09/2015,Grants,Operations Directorate,Grants to third sector organisations / not for profit organisations and other businesses,LEICESTERSHIRE SECONDARY SCITT,4000215429,31050.00
Department for Education,NATIONAL COLLEGE FOR TEACHING AND LEADERSHIP AGENCY,02/09/2015,Grants,Operations Directorate,Grants to educational establishments,UNIVERSITY OF WINCHESTER,4000215436,2478.60
Department for Education,NATIONAL COLLEGE FOR TEACHING AND LEADERSHIP AGENCY,02/09/2015,Grants,Operations Directorate,Grants to educational establishments,UNIVERSITY OF WINCHESTER,4000215436,44219.25
Department for Education,NATIONAL COLLEGE FOR TEACHING AND LEADERSHIP AGENCY,02/09/2015,Grants,Delivery Directorate,Grants to educational establishments,UNIVERSITY OF WINCHESTER,4000215436,16726.50
Department for Education,NATIONAL COLLEGE FOR TEACHING AND LEADERSHIP AGENCY,02/09/2015,Grants,Operations Directorate,Grants to third sector organisations / not for profit organisations and other businesses,CORNWALL SCITT,4000215437,54645.66
Department for Education,NATIONAL COLLEGE FOR TEACHING AND LEADERSHIP AGENCY,02/09/2015,Grants,Operations Directorate,Grants to educational establishments,UNIVERSITY OF SOUTHAMPTON,4000215438,199450.53
Department for Education,NATIONAL COLLEGE FOR TEACHING AND LEADERSHIP AGENCY,02/09/2015,Grants,Operations Directorate,Grants to educational establishments,LONDON SOUTH BANK UNIVERSITY,4000215439,42056.73
Department for Education,NATIONAL COLLEGE FOR TEACHING AND LEADERSHIP AGENCY,02/09/2015,Grants,Operations Directorate,Grants to local authorities,ESSEX COUNTY COUNCIL,4000215442,37015.38
Department for Education,NATIONAL COLLEGE FOR TEACHING AND LEADERSHIP AGENCY,02/09/2015,Grants,Operations Directorate,Grants to third sector organisations / not for profit organisations and other businesses,DURHAM SECONDARY APPLIED SCITT,4000215445,53934.57
Department for Education,DEPARTMENT FOR EDUCATION,02/09/2015,Grants,Free School Group,Grants to third sector organisations / not for profit organisations and other businesses,EDUCATION FOR THE 21ST CENTURY,4000215446,30000.00
Department for Education,NATIONAL COLLEGE FOR TEACHING AND LEADERSHIP AGENCY,02/09/2015,Grants,Operations Directorate,Grants to educational establishments,THE UNIVERSITY OF READING,4000215450,211715.55
Department for Education,NATIONAL COLLEGE FOR TEACHING AND LEADERSHIP AGENCY,02/09/2015,Grants,Delivery Directorate,Grants to educational establishments,THE UNIVERSITY OF READING,4000215450,23026.50
Department for Education,NATIONAL COLLEGE FOR TEACHING AND LEADERSHIP AGENCY,02/09/2015,Grants,Operations Directorate,Grants to third sector organisations / not for profit organisations and other businesses,CARMEL TEACHER TRAINING PARTNERSHIP,4000215451,67565.25
Department for Education,NATIONAL COLLEGE FOR TEACHING AND LEADERSHIP AGENCY,02/09/2015,Grants,Operations Directorate,Grants to third sector organisations / not for profit organisations and other businesses,CHILTERN TRAINING GROUP,4000215452,27123.03
Department for Education,NATIONAL COLLEGE FOR TEACHING AND LEADERSHIP AGENCY,02/09/2015,Grants,Operations Directorate,Grants to educational establishments,UNIVERSITY OF GREENWICH,4000215456,161517.06
Department for Education,NATIONAL COLLEGE FOR TEACHING AND LEADERSHIP AGENCY,02/09/2015,Grants,Delivery Directorate,Grants to educational establishments,UNIVERSITY OF GREENWICH,4000215456,36643.95
Department for Education,NATIONAL COLLEGE FOR TEACHING AND LEADERSHIP AGENCY,02/09/2015,Grants,Operations Directorate,Grants to educational establishments,MINSTHORPE COMMUNITY COLLEGE,4000215459,31230.00
Department for Education,NATIONAL COLLEGE FOR TEACHING AND LEADERSHIP AGENCY,02/09/2015,Grants,Operations Directorate,Grants to educational establishments,UNIVERSITY OF CUMBRIA,4000215460,826.20
Department for Education,NATIONAL COLLEGE FOR TEACHING AND LEADERSHIP AGENCY,02/09/2015,Grants,Operations Directorate,Grants to educational establishments,UNIVERSITY OF CUMBRIA,4000215460,306392.76
Department for Education,NATIONAL COLLEGE FOR TEACHING AND LEADERSHIP AGENCY,02/09/2015,Grants,Delivery Directorate,Grants to educational establishments,UNIVERSITY OF CUMBRIA,4000215460,18900.00
Department for Education,DEPARTMENT FOR EDUCATION,02/09/2015,Grants,Free School Group,Grants to educational establishments,EALING FIELDS ACADEMY TRUST,4000215461,38000.00
Department for Education,DEPARTMENT FOR EDUCATION,02/09/2015,Grants,Free School Group,Grants to third sector organisations / not for profit organisations and other businesses,BICESTER TECHNOLOGY STUDIO TRUST,4000215463,30000.00
Department for Education,NATIONAL COLLEGE FOR TEACHING AND LEADERSHIP AGENCY,02/09/2015,Grants,Operations Directorate,Grants to third sector organisations / not for profit organisations and other businesses,EDUCATION MANAGEMENT DIRECT LTD,4000215467,26574.03
Department for Education,NATIONAL COLLEGE FOR TEACHING AND LEADERSHIP AGENCY,02/09/2015,Grants,Operations Directorate,Grants to third sector organisations / not for profit organisations and other businesses,E QUALITAS PROFESSIONAL SERVICES LTD,4000215468,20909.34
Department for Education,NATIONAL COLLEGE FOR TEACHING AND LEADERSHIP AGENCY,02/09/2015,Grants,Delivery Directorate,Grants to third sector organisations / not for profit organisations and other businesses,E QUALITAS PROFESSIONAL SERVICES LTD,4000215468,33453.00
Department for Education,NATIONAL COLLEGE FOR TEACHING AND LEADERSHIP AGENCY,02/09/2015,Grants,Operations Directorate,Grants to educational establishments,UNIVERSITY OF CHESTER,4000215472,1239.30
Department for Education,NATIONAL COLLEGE FOR TEACHING AND LEADERSHIP AGENCY,02/09/2015,Grants,Operations Directorate,Grants to educational establishments,UNIVERSITY OF CHESTER,4000215472,201113.19
Department for Education,NATIONAL COLLEGE FOR TEACHING AND LEADERSHIP AGENCY,02/09/2015,Grants,Delivery Directorate,Grants to educational establishments,UNIVERSITY OF CHESTER,4000215472,7103.25
Department for Education,NATIONAL COLLEGE FOR TEACHING AND LEADERSHIP AGENCY,02/09/2015,Grants,Operations Directorate,Grants to third sector organisations / not for profit organisations and other businesses,ROEHAMPTON CORPORATE INITIATIVES LTD,4000215473,159881.76
Department for Education,NATIONAL COLLEGE FOR TEACHING AND LEADERSHIP AGENCY,02/09/2015,Grants,Operations Directorate,Grants to educational establishments,UNIVERSITY OF CHICHESTER,4000215474,99897.03
Department for Education,NATIONAL COLLEGE FOR TEACHING AND LEADERSHIP AGENCY,02/09/2015,Grants,Delivery Directorate,Grants to educational establishments,UNIVERSITY OF CHICHESTER,4000215474,16726.50
Department for Education,NATIONAL COLLEGE FOR TEACHING AND LEADERSHIP AGENCY,02/09/2015,Grants,Operations Directorate,Grants to third sector organisations / not for profit organisations and other businesses,THE OAKS SCITT,4000215480,58017.78
Department for Education,NATIONAL COLLEGE FOR TEACHING AND LEADERSHIP AGENCY,02/09/2015,Grants,Operations Directorate,Grants to third sector organisations / not for profit organisations and other businesses,EAST LINCOLNSHIRE DRB,4000215483,31129.83
Department for Education,NATIONAL COLLEGE FOR TEACHING AND LEADERSHIP AGENCY,02/09/2015,Grants,Operations Directorate,Grants to third sector organisations / not for profit organisations and other businesses,GLOUCESTERSHIRE ITE PARTNERSHIP,4000215485,28948.77
Department for Education,NATIONAL COLLEGE FOR TEACHING AND LEADERSHIP AGENCY,02/09/2015,Grants,Operations Directorate,Grants to educational establishments,UNIVERSITY OF NORTHAMPTON,4000215487,21787.38
Department for Education,NATIONAL COLLEGE FOR TEACHING AND LEADERSHIP AGENCY,02/09/2015,Grants,Delivery Directorate,Grants to educational establishments,UNIVERSITY OF NORTHAMPTON,4000215487,25089.75
Department for Education,NATIONAL COLLEGE FOR TEACHING AND LEADERSHIP AGENCY,02/09/2015,Grants,Operations Directorate,Grants to educational establishments,ST MARYS UNIVERSITY COLLEGE,4000215488,213542.10
Department for Education,NATIONAL COLLEGE FOR TEACHING AND LEADERSHIP AGENCY,02/09/2015,Grants,Operations Directorate,Grants to educational establishments,GOLDSMITH COLLEGE,4000215492,178330.32
Department for Education,NATIONAL COLLEGE FOR TEACHING AND LEADERSHIP AGENCY,02/09/2015,Grants,Operations Directorate,Grants to third sector organisations / not for profit organisations and other businesses,GRAND UNION TRAINING PARTNERSHIP,4000215493,36420.03
Department for Education,DEPARTMENT FOR EDUCATION,11/09/2015,ICT,Systems and Accountability Group,ICT Services,PROLOG,4000216179,30900.00
Department for Education,DEPARTMENT FOR EDUCATION,02/09/2015,Grants,Academies Delivery Group,Grants to educational establishments,DANE COURT GRAMMAR SCHOOL,4000215496,35000.00
Department for Education,DEPARTMENT FOR EDUCATION,02/09/2015,Grants,Free School Group,Grants to educational establishments,SCARBOROUGH UNIVERSITY TECHNICAL COLLEGE,4000215497,30000.00
Department for Education,DEPARTMENT FOR EDUCATION,02/09/2015,Grants,Free School Group,Grants to third sector organisations / not for profit organisations and other businesses,LEEDS UTC LTD,4000215498,30000.00
Department for Education,NATIONAL COLLEGE FOR TEACHING AND LEADERSHIP AGENCY,02/09/2015,Grants,Operations Directorate,Grants to educational establishments,BRUNEL UNIVERSITY,4000215501,92066.04
Department for Education,NATIONAL COLLEGE FOR TEACHING AND LEADERSHIP AGENCY,02/09/2015,Grants,Operations Directorate,Grants to educational establishments,THE MORLEY ACADEMY,4000215502,54707.58
Department for Education,NATIONAL COLLEGE FOR TEACHING AND LEADERSHIP AGENCY,02/09/2015,Grants,Operations Directorate,Grants to educational establishments,OXFORD BROOKES UNIVERSITY,4000215504,1652.40
Department for Education,NATIONAL COLLEGE FOR TEACHING AND LEADERSHIP AGENCY,02/09/2015,Grants,Operations Directorate,Grants to educational establishments,OXFORD BROOKES UNIVERSITY,4000215504,41959.53
Department for Education,NATIONAL COLLEGE FOR TEACHING AND LEADERSHIP AGENCY,02/09/2015,Grants,Delivery Directorate,Grants to educational establishments,OXFORD BROOKES UNIVERSITY,4000215504,18900.00
Department for Education,DEPARTMENT FOR EDUCATION,02/09/2015,Grants,Free School Group,Grants to educational establishments,WMG ACADEMY FOR YOUNG ENGINEERS SOLIHULL,4000215512,30000.00
Department for Education,DEPARTMENT FOR EDUCATION,02/09/2015,Grants,Free School Group,Grants to educational establishments,WOOTTON PARK SCHOOL,4000215514,30000.00
Department for Education,NATIONAL COLLEGE FOR TEACHING AND LEADERSHIP AGENCY,02/09/2015,Grants,Operations Directorate,Grants to educational establishments,LEEDS BECKETT UNIVERSITY,4000215517,2065.50
Department for Education,NATIONAL COLLEGE FOR TEACHING AND LEADERSHIP AGENCY,02/09/2015,Grants,Operations Directorate,Grants to educational establishments,LEEDS BECKETT UNIVERSITY,4000215517,58558.50
Department for Education,NATIONAL COLLEGE FOR TEACHING AND LEADERSHIP AGENCY,02/09/2015,Grants,Delivery Directorate,Grants to educational establishments,LEEDS BECKETT UNIVERSITY,4000215517,6189.75
Department for Education,NATIONAL COLLEGE FOR TEACHING AND LEADERSHIP AGENCY,02/09/2015,Grants,Operations Directorate,Grants to educational establishments,STAFFORDSHIRE UNIVERSITY,4000215518,40316.94
Department for Education,NATIONAL COLLEGE FOR TEACHING AND LEADERSHIP AGENCY,02/09/2015,Grants,Delivery Directorate,Grants to educational establishments,STAFFORDSHIRE UNIVERSITY,4000215518,6300.00
Department for Education,NATIONAL COLLEGE FOR TEACHING AND LEADERSHIP AGENCY,02/09/2015,Grants,Operations Directorate,Grants to educational establishments,UNIVERSITY OF DERBY,4000215519,826.20
Department for Education,NATIONAL COLLEGE FOR TEACHING AND LEADERSHIP AGENCY,02/09/2015,Grants,Operations Directorate,Grants to educational establishments,UNIVERSITY OF DERBY,4000215519,81719.37
Department for Education,NATIONAL COLLEGE FOR TEACHING AND LEADERSHIP AGENCY,02/09/2015,Grants,Delivery Directorate,Grants to educational establishments,UNIVERSITY OF DERBY,4000215519,15639.75
Department for Education,NATIONAL COLLEGE FOR TEACHING AND LEADERSHIP AGENCY,02/09/2015,Grants,Operations Directorate,Grants to educational establishments,UNIVERSITY OF EAST ANGLIA,4000215520,212479.83
Department for Education,NATIONAL COLLEGE FOR TEACHING AND LEADERSHIP AGENCY,02/09/2015,Grants,Operations Directorate,Grants to educational establishments,KINGS COLLEGE GUILDFORD,4000215521,285380.46
Department for Education,NATIONAL COLLEGE FOR TEACHING AND LEADERSHIP AGENCY,02/09/2015,Grants,Operations Directorate,Grants to educational establishments,UNIVERSITY OF BIRMINGHAM,4000215526,326105.82
Department for Education,NATIONAL COLLEGE FOR TEACHING AND LEADERSHIP AGENCY,02/09/2015,Grants,Operations Directorate,Grants to educational establishments,SOUTHEND HIGH SCHOOL FOR GIRLS,4000215528,28076.94
Department for Education,NATIONAL COLLEGE FOR TEACHING AND LEADERSHIP AGENCY,02/09/2015,Grants,Operations Directorate,Grants to educational establishments,MANCHESTER METROPOLITAN UNIVERSITY,4000215531,496179.27
Department for Education,NATIONAL COLLEGE FOR TEACHING AND LEADERSHIP AGENCY,02/09/2015,Grants,Delivery Directorate,Grants to educational establishments,MANCHESTER METROPOLITAN UNIVERSITY,4000215531,18900.00
Department for Education,DEPARTMENT FOR EDUCATION,14/09/2015,ICT,Systems and Accountability Group,ICT Services,SCISYS UK LTD,4000216268,64785.51
Department for Education,DEPARTMENT FOR EDUCATION,02/09/2015,Grants,Free School Group,Grants to educational establishments,THE GLOBAL ACADEMY UTC,4000215537,30000.00
Department for Education,DEPARTMENT FOR EDUCATION,02/09/2015,Grants,Free School Group,Grants to educational establishments,THE SASH 2 SCHOOL,4000215538,30000.00
Department for Education,DEPARTMENT FOR EDUCATION,02/09/2015,Grants,Free School Group,Grants to educational establishments,ONE DEGREE ACADEMY,4000215539,30000.00
Department for Education,NATIONAL COLLEGE FOR TEACHING AND LEADERSHIP AGENCY,02/09/2015,Grants,Operations Directorate,Grants to educational establishments,UNIVERSITY OF SUSSEX,4000215541,247219.11
Department for Education,NATIONAL COLLEGE FOR TEACHING AND LEADERSHIP AGENCY,02/09/2015,Grants,Delivery Directorate,Grants to educational establishments,UNIVERSITY OF SUSSEX,4000215541,17529.75
Department for Education,NATIONAL COLLEGE FOR TEACHING AND LEADERSHIP AGENCY,02/09/2015,Grants,Operations Directorate,Grants to educational establishments,UNIVERSITY OF PLYMOUTH,4000215542,79898.13
Department for Education,NATIONAL COLLEGE FOR TEACHING AND LEADERSHIP AGENCY,02/09/2015,Grants,Delivery Directorate,Grants to educational establishments,UNIVERSITY OF PLYMOUTH,4000215542,14663.25
Department for Education,NATIONAL COLLEGE FOR TEACHING AND LEADERSHIP AGENCY,02/09/2015,Grants,Operations Directorate,Grants to educational establishments,UNIVERSITY OF HUDDERSFIELD,4000215546,64291.50
Department for Education,NATIONAL COLLEGE FOR TEACHING AND LEADERSHIP AGENCY,02/09/2015,Grants,Delivery Directorate,Grants to educational establishments,UNIVERSITY OF HUDDERSFIELD,4000215546,13749.75
Department for Education,NATIONAL COLLEGE FOR TEACHING AND LEADERSHIP AGENCY,02/09/2015,Grants,Operations Directorate,Grants to educational establishments,UNIVERSITY OF SUNDERLAND,4000215548,109115.37
Department for Education,NATIONAL COLLEGE FOR TEACHING AND LEADERSHIP AGENCY,02/09/2015,Grants,Delivery Directorate,Grants to educational establishments,UNIVERSITY OF SUNDERLAND,4000215548,17703.00
Department for Education,NATIONAL COLLEGE FOR TEACHING AND LEADERSHIP AGENCY,02/09/2015,Grants,Operations Directorate,Grants to educational establishments,LEEDS TRINITY UNIVERSITY COLLEGE,4000215550,1239.30
Department for Education,NATIONAL COLLEGE FOR TEACHING AND LEADERSHIP AGENCY,02/09/2015,Grants,Operations Directorate,Grants to educational establishments,LEEDS TRINITY UNIVERSITY COLLEGE,4000215550,187486.02
Department for Education,NATIONAL COLLEGE FOR TEACHING AND LEADERSHIP AGENCY,02/09/2015,Grants,Delivery Directorate,Grants to educational establishments,LEEDS TRINITY UNIVERSITY COLLEGE,4000215550,15750.00
Department for Education,NATIONAL COLLEGE FOR TEACHING AND LEADERSHIP AGENCY,02/09/2015,Grants,Operations Directorate,Grants to third sector organisations / not for profit organisations and other businesses,KENT & MEDWAY TRAINING,4000215554,49496.04
Department for Education,NATIONAL COLLEGE FOR TEACHING AND LEADERSHIP AGENCY,02/09/2015,Programme costs,Delivery Directorate,Funding to deliver policies (excluding consultancy) paid to third parties via a service delivery contract,SELT,4000215557,184102.25
Department for Education,DEPARTMENT FOR EDUCATION,02/09/2015,Grants,Free School Group,Grants to third sector organisations / not for profit organisations and other businesses,SOUTH BANK ENGINEERING UTC TRUST,4000215559,30000.00
Department for Education,STANDARDS AND TESTING AGENCY,02/09/2015,Programme costs,Test Development Division,Funding to deliver policies (excluding consultancy) paid to third parties via a service delivery contract,NFER,4000215561,359968.00
Department for Education,DEPARTMENT FOR EDUCATION,02/09/2015,Grants,Free School Group,Grants to third sector organisations / not for profit organisations and other businesses,South Durham UTC,4000215562,30000.00
Department for Education,DEPARTMENT FOR EDUCATION,02/09/2015,Grants,Free School Group,Grants to educational establishments,BEDFORD TECHNICAL ACADEMY,4000215563,30000.00
Department for Education,NATIONAL COLLEGE FOR TEACHING AND LEADERSHIP AGENCY,02/09/2015,Grants,Operations Directorate,Grants to third sector organisations / not for profit organisations and other businesses,THE CAMBRIDGE PARTNERSHIP,4000215565,25717.32
Department for Education,NATIONAL COLLEGE FOR TEACHING AND LEADERSHIP AGENCY,02/09/2015,Grants,Operations Directorate,Grants to educational establishments,KINGSTON UNIVERSITY,4000215566,126618.48
Department for Education,NATIONAL COLLEGE FOR TEACHING AND LEADERSHIP AGENCY,02/09/2015,Grants,Delivery Directorate,Grants to educational establishments,KINGSTON UNIVERSITY,4000215566,18900.00
Department for Education,NATIONAL COLLEGE FOR TEACHING AND LEADERSHIP AGENCY,02/09/2015,Grants,Operations Directorate,Grants to educational establishments,UNIVERSITY OF NOTTINGHAM,4000215567,251949.15
Department for Education,NATIONAL COLLEGE FOR TEACHING AND LEADERSHIP AGENCY,02/09/2015,Grants,Operations Directorate,Grants to educational establishments,CHEADLE HULME HIGH SCHOOL,4000215568,25413.75
Department for Education,NATIONAL COLLEGE FOR TEACHING AND LEADERSHIP AGENCY,02/09/2015,Grants,Operations Directorate,Grants to educational establishments,THE ARTHUR TERRY SCHOOL SCITT,4000215570,28035.00
Department for Education,NATIONAL COLLEGE FOR TEACHING AND LEADERSHIP AGENCY,02/09/2015,Grants,Operations Directorate,Grants to educational establishments,CANTERBURY CHRIST CHURCH UNIVERSITY,4000215571,256742.01
Department for Education,NATIONAL COLLEGE FOR TEACHING AND LEADERSHIP AGENCY,02/09/2015,Grants,Delivery Directorate,Grants to educational establishments,CANTERBURY CHRIST CHURCH UNIVERSITY,4000215571,14663.25
Department for Education,DEPARTMENT FOR EDUCATION,02/09/2015,Grants,Free School Group,Grants to third sector organisations / not for profit organisations and other businesses,UTC CREWE,4000215576,30000.00
Department for Education,DEPARTMENT FOR EDUCATION,02/09/2015,Grants,Free School Group,Grants to educational establishments,DON VALLEY UTC ACADEMY TRUST,4000215577,30000.00
Department for Education,NATIONAL COLLEGE FOR TEACHING AND LEADERSHIP AGENCY,02/09/2015,Grants,Operations Directorate,Grants to educational establishments,UNIVERSITY OF BRIGHTON,4000215581,4657.50
Department for Education,NATIONAL COLLEGE FOR TEACHING AND LEADERSHIP AGENCY,02/09/2015,Grants,Operations Directorate,Grants to educational establishments,UNIVERSITY OF BRIGHTON,4000215581,213822.00
Department for Education,NATIONAL COLLEGE FOR TEACHING AND LEADERSHIP AGENCY,02/09/2015,Grants,Delivery Directorate,Grants to educational establishments,UNIVERSITY OF BRIGHTON,4000215581,12600.00
Department for Education,NATIONAL COLLEGE FOR TEACHING AND LEADERSHIP AGENCY,02/09/2015,Grants,Operations Directorate,Grants to educational establishments,SHEFFIELD HALLAM UNIVERSITY,4000215582,342218.79
Department for Education,NATIONAL COLLEGE FOR TEACHING AND LEADERSHIP AGENCY,02/09/2015,Grants,Delivery Directorate,Grants to educational establishments,SHEFFIELD HALLAM UNIVERSITY,4000215582,20853.00
Department for Education,NATIONAL COLLEGE FOR TEACHING AND LEADERSHIP AGENCY,02/09/2015,Grants,Operations Directorate,Grants to local authorities,LEEDS CITY COUNCIL,4000215588,31792.50
Department for Education,DEPARTMENT FOR EDUCATION,02/09/2015,Programme costs,Children's Services and Departmental Strategy Safeguarding Group,Funding to deliver policies (excluding consultancy) paid to third parties via a service delivery contract,DELOITTE MSC LTD,4000215590,44333.88
Department for Education,NATIONAL COLLEGE FOR TEACHING AND LEADERSHIP AGENCY,02/09/2015,Grants,Operations Directorate,Grants to educational establishments,LINCOLNSHIRE TEACHING SCHOOL ALLIANCE,4000215591,26154.00
Department for Education,DEPARTMENT FOR EDUCATION,02/09/2015,Grants,Academies Delivery Group,Grants to educational establishments,THE CHALLENGER MULTI ACADEMY TRUST,4000215592,40000.00
Department for Education,DEPARTMENT FOR EDUCATION,18/09/2015,ICT,Systems and Accountability Group,ICT Services,SOFTWARE FOR DATA ANALYSIS LTD,4000216592,83630.40
Department for Education,NATIONAL COLLEGE FOR TEACHING AND LEADERSHIP AGENCY,02/09/2015,Grants,Operations Directorate,Grants to educational establishments,BATH SPA UNIVERSITY,4000215596,211360.50
Department for Education,NATIONAL COLLEGE FOR TEACHING AND LEADERSHIP AGENCY,02/09/2015,Grants,Delivery Directorate,Grants to educational establishments,BATH SPA UNIVERSITY,4000215596,41816.25
Department for Education,NATIONAL COLLEGE FOR TEACHING AND LEADERSHIP AGENCY,02/09/2015,Grants,Operations Directorate,Grants to third sector organisations / not for profit organisations and other businesses,BILLERICAY EDUCATIONAL CONSORTIUM,4000215597,41006.97
Department for Education,NATIONAL COLLEGE FOR TEACHING AND LEADERSHIP AGENCY,02/09/2015,Grants,Operations Directorate,Grants to educational establishments,BISHOP GROSSETESTE COLLEGE,4000215599,112865.22
Department for Education,NATIONAL COLLEGE FOR TEACHING AND LEADERSHIP AGENCY,02/09/2015,Grants,Delivery Directorate,Grants to educational establishments,BISHOP GROSSETESTE COLLEGE,4000215599,15639.75
Department for Education,NATIONAL COLLEGE FOR TEACHING AND LEADERSHIP AGENCY,02/09/2015,Grants,Operations Directorate,Grants to educational establishments,THE COLLEGE OF ST MARK & ST JOHN,4000215600,44785.26
Department for Education,NATIONAL COLLEGE FOR TEACHING AND LEADERSHIP AGENCY,02/09/2015,Grants,Delivery Directorate,Grants to educational establishments,THE COLLEGE OF ST MARK & ST JOHN,4000215600,17813.25
Department for Education,NATIONAL COLLEGE FOR TEACHING AND LEADERSHIP AGENCY,02/09/2015,Grants,Operations Directorate,Grants to third sector organisations / not for profit organisations and other businesses,THE KIRKLEES PARTNERSHIP,4000215601,31855.68
Department for Education,NATIONAL COLLEGE FOR TEACHING AND LEADERSHIP AGENCY,02/09/2015,Grants,Operations Directorate,Grants to educational establishments,UNIVERSITY OF EXETER,4000215602,308750.58
Department for Education,NATIONAL COLLEGE FOR TEACHING AND LEADERSHIP AGENCY,02/09/2015,Grants,Operations Directorate,Grants to educational establishments,EDGE HILL UNIVERSITY,4000215603,463256.73
Department for Education,NATIONAL COLLEGE FOR TEACHING AND LEADERSHIP AGENCY,02/09/2015,Grants,Delivery Directorate,Grants to educational establishments,EDGE HILL UNIVERSITY,4000215603,55503.00
Department for Education,NATIONAL COLLEGE FOR TEACHING AND LEADERSHIP AGENCY,02/09/2015,Grants,Operations Directorate,Grants to educational establishments,UNIVERSITY OF LEICESTER,4000215605,180384.93
Department for Education,NATIONAL COLLEGE FOR TEACHING AND LEADERSHIP AGENCY,02/09/2015,Grants,Operations Directorate,Grants to educational establishments,THE UNIVERSITY OF MANCHESTER,4000215606,295795.89
Department for Education,NATIONAL COLLEGE FOR TEACHING AND LEADERSHIP AGENCY,02/09/2015,Grants,Operations Directorate,Grants to third sector organisations / not for profit organisations and other businesses,SUTTON PARK SCITT,4000215611,28688.58
Department for Education,NATIONAL COLLEGE FOR TEACHING AND LEADERSHIP AGENCY,02/09/2015,Grants,Operations Directorate,Grants to educational establishments,NEWMAN COLLEGE,4000215616,124427.61
Department for Education,NATIONAL COLLEGE FOR TEACHING AND LEADERSHIP AGENCY,02/09/2015,Grants,Delivery Directorate,Grants to educational establishments,NEWMAN COLLEGE,4000215616,11686.50
Department for Education,NATIONAL COLLEGE FOR TEACHING AND LEADERSHIP AGENCY,02/09/2015,Grants,Operations Directorate,Grants to third sector organisations / not for profit organisations and other businesses,NORTH BEDS SCITT CONSORTIUM,4000215617,26339.67
Department for Education,NATIONAL COLLEGE FOR TEACHING AND LEADERSHIP AGENCY,02/09/2015,Grants,Operations Directorate,Grants to educational establishments,UNIVERSITY OF DURHAM,4000215618,150761.61
Department for Education,NATIONAL COLLEGE FOR TEACHING AND LEADERSHIP AGENCY,02/09/2015,Grants,Operations Directorate,Grants to educational establishments,UNIVERSITY OF WOLVERHAMPTON,4000215619,184920.39
Department for Education,NATIONAL COLLEGE FOR TEACHING AND LEADERSHIP AGENCY,02/09/2015,Grants,Delivery Directorate,Grants to educational establishments,UNIVERSITY OF WOLVERHAMPTON,4000215619,12600.00
Department for Education,NATIONAL COLLEGE FOR TEACHING AND LEADERSHIP AGENCY,02/09/2015,Grants,Operations Directorate,Grants to educational establishments,UNIVERSITY OF NEWCASTLE UPON TYNE,4000215620,128385.90
Department for Education,NATIONAL COLLEGE FOR TEACHING AND LEADERSHIP AGENCY,02/09/2015,Grants,Operations Directorate,Grants to local authorities,SUFFOLK COUNTY COUNCIL,4000215621,37137.42
Department for Education,NATIONAL COLLEGE FOR TEACHING AND LEADERSHIP AGENCY,02/09/2015,Grants,Operations Directorate,Grants to educational establishments,UNIVERSITY OF CAMBRIDGE,4000215623,258840.45
Department for Education,NATIONAL COLLEGE FOR TEACHING AND LEADERSHIP AGENCY,02/09/2015,Grants,Operations Directorate,Grants to educational establishments,BIRMINGHAM CITY UNIVERSITY,4000215625,168498.00
Department for Education,NATIONAL COLLEGE FOR TEACHING AND LEADERSHIP AGENCY,02/09/2015,Grants,Delivery Directorate,Grants to educational establishments,BIRMINGHAM CITY UNIVERSITY,4000215625,7427.70
Department for Education,NATIONAL COLLEGE FOR TEACHING AND LEADERSHIP AGENCY,02/09/2015,Grants,Operations Directorate,Grants to third sector organisations / not for profit organisations and other businesses,UCL INSTITUTE OF EDUCATION,4000215628,651012.03
Department for Education,NATIONAL COLLEGE FOR TEACHING AND LEADERSHIP AGENCY,02/09/2015,Grants,Delivery Directorate,Grants to third sector organisations / not for profit organisations and other businesses,UCL INSTITUTE OF EDUCATION,4000215628,34690.95
Department for Education,NATIONAL COLLEGE FOR TEACHING AND LEADERSHIP AGENCY,02/09/2015,Grants,Operations Directorate,Grants to educational establishments,MIDDLESEX UNIVERSITY,4000215636,105375.06
Department for Education,NATIONAL COLLEGE FOR TEACHING AND LEADERSHIP AGENCY,02/09/2015,Grants,Delivery Directorate,Grants to educational establishments,MIDDLESEX UNIVERSITY,4000215636,26891.55
Department for Education,NATIONAL COLLEGE FOR TEACHING AND LEADERSHIP AGENCY,02/09/2015,Grants,Operations Directorate,Grants to educational establishments,UNIVERSITY OF YORK,4000215637,167321.79
Department for Education,NATIONAL COLLEGE FOR TEACHING AND LEADERSHIP AGENCY,02/09/2015,Grants,Operations Directorate,Grants to educational establishments,UNIVERSITY OF PORTSMOUTH,4000215640,133227.45
Department for Education,NATIONAL COLLEGE FOR TEACHING AND LEADERSHIP AGENCY,02/09/2015,Grants,Delivery Directorate,Grants to educational establishments,UNIVERSITY OF PORTSMOUTH,4000215640,9450.00
Department for Education,NATIONAL COLLEGE FOR TEACHING AND LEADERSHIP AGENCY,02/09/2015,Grants,Operations Directorate,Grants to educational establishments,UNIVERSITY OF THE WEST OF ENGLAND,4000215642,144721.44
Department for Education,NATIONAL COLLEGE FOR TEACHING AND LEADERSHIP AGENCY,02/09/2015,Grants,Delivery Directorate,Grants to educational establishments,UNIVERSITY OF THE WEST OF ENGLAND,4000215642,7560.00
Department for Education,NATIONAL COLLEGE FOR TEACHING AND LEADERSHIP AGENCY,02/09/2015,Grants,Operations Directorate,Grants to educational establishments,LIVERPOOL JOHN MOORES UNIVERSITY,4000215643,174956.31
Department for Education,NATIONAL COLLEGE FOR TEACHING AND LEADERSHIP AGENCY,02/09/2015,Grants,Operations Directorate,Grants to educational establishments,HIBERNIA COLLEGE UK,4000215649,52958.70
Department for Education,NATIONAL COLLEGE FOR TEACHING AND LEADERSHIP AGENCY,02/09/2015,Grants,Operations Directorate,Grants to educational establishments,YORK ST JOHN UNIVERSITY,4000215658,82420.47
Department for Education,NATIONAL COLLEGE FOR TEACHING AND LEADERSHIP AGENCY,02/09/2015,Grants,Operations Directorate,Grants to educational establishments,UNIVERSITY OF OXFORD,4000215659,216738.09
Department for Education,NATIONAL COLLEGE FOR TEACHING AND LEADERSHIP AGENCY,02/09/2015,Grants,Operations Directorate,Grants to educational establishments,NOTRE DAME HIGH SCHOOL,4000215661,33975.45
Department for Education,NATIONAL COLLEGE FOR TEACHING AND LEADERSHIP AGENCY,02/09/2015,Grants,Operations Directorate,Grants to educational establishments,UNIVERSITY OF SHEFFIELD,4000215662,132205.68
Department for Education,NATIONAL COLLEGE FOR TEACHING AND LEADERSHIP AGENCY,02/09/2015,Grants,Operations Directorate,Grants to educational establishments,UNIVERSITY OF GLOUCESTERSHIRE,4000215663,72177.30
Department for Education,NATIONAL COLLEGE FOR TEACHING AND LEADERSHIP AGENCY,02/09/2015,Grants,Delivery Directorate,Grants to educational establishments,UNIVERSITY OF GLOUCESTERSHIRE,4000215663,18900.00
Department for Education,NATIONAL COLLEGE FOR TEACHING AND LEADERSHIP AGENCY,02/09/2015,Grants,Operations Directorate,Grants to educational establishments,LIVERPOOL HOPE UNIVERSITY,4000215664,5783.40
Department for Education,NATIONAL COLLEGE FOR TEACHING AND LEADERSHIP AGENCY,02/09/2015,Grants,Operations Directorate,Grants to educational establishments,LIVERPOOL HOPE UNIVERSITY,4000215664,251700.66
Department for Education,NATIONAL COLLEGE FOR TEACHING AND LEADERSHIP AGENCY,02/09/2015,Grants,Delivery Directorate,Grants to educational establishments,LIVERPOOL HOPE UNIVERSITY,4000215664,14442.75
Department for Education,NATIONAL COLLEGE FOR TEACHING AND LEADERSHIP AGENCY,02/09/2015,Grants,Operations Directorate,Grants to educational establishments,BRADFORD COLLEGE,4000215665,87291.00
Department for Education,NATIONAL COLLEGE FOR TEACHING AND LEADERSHIP AGENCY,02/09/2015,Grants,Operations Directorate,Grants to educational establishments,UNIVERSITY OF EAST LONDON,4000215672,281050.83
Department for Education,NATIONAL COLLEGE FOR TEACHING AND LEADERSHIP AGENCY,02/09/2015,Grants,Operations Directorate,Grants to educational establishments,UNIVERSITY OF NORTHUMBRIA,4000215674,72858.78
Department for Education,NATIONAL COLLEGE FOR TEACHING AND LEADERSHIP AGENCY,02/09/2015,Grants,Delivery Directorate,Grants to educational establishments,UNIVERSITY OF NORTHUMBRIA,4000215674,13337.10
Department for Education,NATIONAL COLLEGE FOR TEACHING AND LEADERSHIP AGENCY,02/09/2015,Grants,Operations Directorate,Grants to educational establishments,UNIVERSITY OF HERTFORDSHIRE,4000215676,75366.18
Department for Education,NATIONAL COLLEGE FOR TEACHING AND LEADERSHIP AGENCY,02/09/2015,Grants,Operations Directorate,Grants to educational establishments,UNIVERSITY OF WORCESTER,4000215677,181302.12
Department for Education,NATIONAL COLLEGE FOR TEACHING AND LEADERSHIP AGENCY,02/09/2015,Grants,Delivery Directorate,Grants to educational establishments,UNIVERSITY OF WORCESTER,4000215677,24828.30
Department for Education,NATIONAL COLLEGE FOR TEACHING AND LEADERSHIP AGENCY,02/09/2015,Grants,Operations Directorate,Grants to educational establishments,NOTLEY HIGH SCHOOL & BRAINTREE SIXTH FORM,4000215678,28072.44
Department for Education,NATIONAL COLLEGE FOR TEACHING AND LEADERSHIP AGENCY,02/09/2015,Grants,Operations Directorate,Grants to educational establishments,UNIVERSITY OF BEDFORDSHIRE,4000215681,1709.10
Department for Education,NATIONAL COLLEGE FOR TEACHING AND LEADERSHIP AGENCY,02/09/2015,Grants,Operations Directorate,Grants to educational establishments,UNIVERSITY OF BEDFORDSHIRE,4000215681,64896.48
Department for Education,NATIONAL COLLEGE FOR TEACHING AND LEADERSHIP AGENCY,02/09/2015,Grants,Delivery Directorate,Grants to educational establishments,UNIVERSITY OF BEDFORDSHIRE,4000215681,36603.00
Department for Education,NATIONAL COLLEGE FOR TEACHING AND LEADERSHIP AGENCY,02/09/2015,Professional Services Other,Operations Directorate,Legal services provided externally (excluding Treasury Solicitor) ,BROWNE JACOBSON SOLICITORS,4000215685,30575.40
Department for Education,NATIONAL COLLEGE FOR TEACHING AND LEADERSHIP AGENCY,02/09/2015,Grants,Operations Directorate,Grants to educational establishments,THE ACADEMY AT SHOTTON HALL,4000215687,64972.44
Department for Education,NATIONAL COLLEGE FOR TEACHING AND LEADERSHIP AGENCY,02/09/2015,Grants,Operations Directorate,Grants to educational establishments,NOTTINGHAM TRENT UNIVERSITY,4000215689,122533.56
Department for Education,NATIONAL COLLEGE FOR TEACHING AND LEADERSHIP AGENCY,02/09/2015,Grants,Delivery Directorate,Grants to educational establishments,NOTTINGHAM TRENT UNIVERSITY,4000215689,6300.00
Department for Education,NATIONAL COLLEGE FOR TEACHING AND LEADERSHIP AGENCY,02/09/2015,Grants,Operations Directorate,Grants to educational establishments,LONDON METROPOLITAN UNIVERSITY,4000215690,122705.28
Department for Education,NATIONAL COLLEGE FOR TEACHING AND LEADERSHIP AGENCY,02/09/2015,Grants,Delivery Directorate,Grants to educational establishments,LONDON METROPOLITAN UNIVERSITY,4000215690,31500.00
Department for Education,NATIONAL COLLEGE FOR TEACHING AND LEADERSHIP AGENCY,02/09/2015,Grants,Operations Directorate,Grants to educational establishments,UNIVERSITY OF BRISTOL,4000215693,214895.79
Department for Education,NATIONAL COLLEGE FOR TEACHING AND LEADERSHIP AGENCY,02/09/2015,Grants,Operations Directorate,Grants to educational establishments,UNIVERSITY OF WARWICK,4000215694,171051.84
Department for Education,NATIONAL COLLEGE FOR TEACHING AND LEADERSHIP AGENCY,02/09/2015,Grants,Delivery Directorate,Grants to educational establishments,UNIVERSITY OF WARWICK,4000215694,19766.25
Department for Education,DEPARTMENT FOR EDUCATION,03/09/2015,Energy and Fuels,Property Asset Management Group,Electricity supply,EDF ENERGY LTD,4000215715,129469.40
Department for Education,DEPARTMENT FOR EDUCATION,03/09/2015,Miscellaneous Expenditure,"Childcare, Special Educational Needs and Children's Strategy Group",Tribunals and trials service fees,DEPARTMENT FOR COMMUNITIES & LOCAL GOVERNMENT,4000215716,25000.00
Department for Education,DEPARTMENT FOR EDUCATION,03/09/2015,Miscellaneous Expenditure,"Childcare, Special Educational Needs and Children's Strategy Group",Tribunals and trials service fees,HMCTS HM COURTS & TRIBUNALS SERVICE,4000215739,63814.00
Department for Education,NATIONAL COLLEGE FOR TEACHING AND LEADERSHIP AGENCY,03/09/2015,Professional Services Other,Delivery Directorate,"Fees / expenses of professionals, for example to implement advice or changes",OFSTED,4000215744,137000.00
Department for Education,NATIONAL COLLEGE FOR TEACHING AND LEADERSHIP AGENCY,03/09/2015,Programme costs,Delivery Directorate,Funding to deliver policies (excluding consultancy) paid to third parties via a service delivery contract,UNIVERSITY OF BRIGHTON,4000215753,570294.82
Department for Education,DEPARTMENT FOR EDUCATION,23/09/2015,ICT,Information Technology Group,ICT Services,SKILLS FUNDING AGENCY,4000216819,27999.60
Department for Education,DEPARTMENT FOR EDUCATION,04/09/2015,Personnel Related,Human Resources Group,Staff costs for the Civil Service Fast Stream Programme,HMRC,4000215789,192343.40
Department for Education,DEPARTMENT FOR EDUCATION,04/09/2015,Grants,"Childcare, Special Educational Needs and Children's Strategy Group",Grants to third sector organisations / not for profit organisations and other businesses,KIDS UNLTD,4000215793,41436.97
Department for Education,DEPARTMENT FOR EDUCATION,04/09/2015,Grants,"Childcare, Special Educational Needs and Children's Strategy Group",Grants to third sector organisations / not for profit organisations and other businesses,INSTITUTE OF WELLBEING LTD,4000215798,40493.81
Department for Education,DEPARTMENT FOR EDUCATION,04/09/2015,Grants,System Reform Group,Current grant funding to other government departments for DfE's contribution to jointly funded programmes ,DEPARTMENT FOR COMMUNITIES & LOCAL GOVERNMENT,4000215802,1590689.00
Department for Education,DEPARTMENT FOR EDUCATION,04/09/2015,Grants,Assessment and Curriculum and General Qualifications Group,Grants to educational establishments,CHOIR SCHOOLS ASSOCIATION BURSARY TRUST LTD,4000215808,6798150.00
Department for Education,DEPARTMENT FOR EDUCATION,08/09/2015,Professional Services Other,Finance and Commercial Group,"Fees / expenses of professionals, for example to implement advice or changes",RUSSAM GMS LTD,4000215970,6240.00
Department for Education,DEPARTMENT FOR EDUCATION,04/09/2015,Grants,System Reform Group,Grants to third sector organisations / not for profit organisations and other businesses,EDUCATION & EMPLOYERS TASKFORCE,4000215813,40000.00
Department for Education,NATIONAL COLLEGE FOR TEACHING AND LEADERSHIP AGENCY,07/09/2015,Grants,Delivery Directorate,Grants to educational establishments,UNIVERSITY OF CUMBRIA,4000215816,32760.00
Department for Education,NATIONAL COLLEGE FOR TEACHING AND LEADERSHIP AGENCY,07/09/2015,Grants,Operations Directorate,Grants to educational establishments,UNIVERSITY OF CUMBRIA,4000215816,24830.00
Department for Education,NATIONAL COLLEGE FOR TEACHING AND LEADERSHIP AGENCY,07/09/2015,Grants,Delivery Directorate,Grants to educational establishments,MANCHESTER METROPOLITAN UNIVERSITY,4000215817,28800.00
Department for Education,NATIONAL COLLEGE FOR TEACHING AND LEADERSHIP AGENCY,07/09/2015,Grants,Operations Directorate,Grants to educational establishments,MANCHESTER METROPOLITAN UNIVERSITY,4000215817,104390.00
Department for Education,NATIONAL COLLEGE FOR TEACHING AND LEADERSHIP AGENCY,07/09/2015,Grants,Delivery Directorate,Grants to educational establishments,CANTERBURY CHRIST CHURCH UNIVERSITY,4000215818,290600.00
Department for Education,NATIONAL COLLEGE FOR TEACHING AND LEADERSHIP AGENCY,07/09/2015,Grants,Operations Directorate,Grants to educational establishments,CANTERBURY CHRIST CHURCH UNIVERSITY,4000215818,500585.00
Department for Education,DEPARTMENT FOR EDUCATION,07/09/2015,Grants,Academies Delivery Group,Grants to educational establishments,WOOLPIT COMMUNITY PRIMARY SCHOOL,4000215821,25000.00
Department for Education,DEPARTMENT FOR EDUCATION,07/09/2015,Grants,Free School Group,Grants to third sector organisations / not for profit organisations and other businesses,OASIS COMMUNITY LEARNING,4000215825,60000.00
Department for Education,DEPARTMENT FOR EDUCATION,07/09/2015,Grants,Free School Group,Grants to educational establishments,BRISTOL CHURCH ACADEMIES TRUST,4000215829,30000.00
Department for Education,DEPARTMENT FOR EDUCATION,07/09/2015,Grants,Children's Services and Departmental Strategy Safeguarding Group,Grants to third sector organisations / not for profit organisations and other businesses,ARK UK PROGRAMMES,4000215830,114178.87
Department for Education,NATIONAL COLLEGE FOR TEACHING AND LEADERSHIP AGENCY,07/09/2015,Programme costs,Operations Directorate,Funding to deliver policies (excluding consultancy) paid to third parties via a service delivery contract,CREATIVE CHOICE,4000215831,48652.00
Department for Education,DEPARTMENT FOR EDUCATION,07/09/2015,Grants,Families Group,Grants to third sector organisations / not for profit organisations and other businesses,THE TAVISTOCK & PORTMAN NHS FOUNDATION TRUST,4000215833,128415.96
Department for Education,DEPARTMENT FOR EDUCATION,08/09/2015,Professional Services Other,Finance and Commercial Group,"Fees / expenses of professionals, for example to implement advice or changes",RUSSAM GMS LTD,4000215970,9600.00
Department for Education,DEPARTMENT FOR EDUCATION,08/09/2015,Professional Services Other,Academies Delivery Group,"Fees / expenses of professionals, for example to implement advice or changes",WESTMOOR INTERNATIONAL,4000215995,27047.46
Department for Education,DEPARTMENT FOR EDUCATION,07/09/2015,Programme costs,Closing the Gap Group,Funding to deliver policies (excluding consultancy) paid to third parties via a service delivery contract,CHILDRENS FOOD TRUST,4000215837,38558.26
Department for Education,DEPARTMENT FOR EDUCATION,07/09/2015,Grants,Adoption and Children in Care Division,Grants to third sector organisations / not for profit organisations and other businesses,THE SHARE FOUNDATION 3RD PARTY TRUST,4000215840,54000.00
Department for Education,DEPARTMENT FOR EDUCATION,07/09/2015,Grants,Academies Delivery Group,Grants to local authorities,SOUTH BOROUGH,4000215845,25000.00
Department for Education,NATIONAL COLLEGE FOR TEACHING AND LEADERSHIP AGENCY,07/09/2015,Grants,Delivery Directorate,Grants to educational establishments,HIBERNIA COLLEGE UK,4000215846,150251.93
Department for Education,NATIONAL COLLEGE FOR TEACHING AND LEADERSHIP AGENCY,07/09/2015,Grants,Operations Directorate,Grants to educational establishments,HIBERNIA COLLEGE UK,4000215846,225755.00
Department for Education,NATIONAL COLLEGE FOR TEACHING AND LEADERSHIP AGENCY,07/09/2015,Grants,Delivery Directorate,Grants to educational establishments,UNIVERSITY OF SUSSEX,4000215847,110220.00
Department for Education,NATIONAL COLLEGE FOR TEACHING AND LEADERSHIP AGENCY,07/09/2015,Grants,Operations Directorate,Grants to educational establishments,UNIVERSITY OF SUSSEX,4000215847,68465.00
Department for Education,DEPARTMENT FOR EDUCATION,07/09/2015,Grants,Free School Group,Grants to educational establishments,CANARY WHARF COLLEGE,4000215849,75000.00
Department for Education,NATIONAL COLLEGE FOR TEACHING AND LEADERSHIP AGENCY,07/09/2015,Grants,Operations Directorate,Grants to educational establishments,NOTTINGHAM TRENT UNIVERSITY,4000215856,44040.00
Department for Education,DEPARTMENT FOR EDUCATION,07/09/2015,Programme costs,Adoption and Children in Care Division,Funding to deliver policies (excluding consultancy) paid to third parties via a service delivery contract,MOTT MACDONALD LTD,4000215858,40994.97
Department for Education,NATIONAL COLLEGE FOR TEACHING AND LEADERSHIP AGENCY,07/09/2015,Grants,Operations Directorate,Grants to educational establishments,UNIVERSITY OF BIRMINGHAM,4000215861,139460.00
Department for Education,NATIONAL COLLEGE FOR TEACHING AND LEADERSHIP AGENCY,07/09/2015,Grants,Delivery Directorate,Grants to educational establishments,LEEDS TRINITY UNIVERSITY COLLEGE,4000215864,17600.00
Department for Education,NATIONAL COLLEGE FOR TEACHING AND LEADERSHIP AGENCY,07/09/2015,Grants,Operations Directorate,Grants to educational establishments,LEEDS TRINITY UNIVERSITY COLLEGE,4000215864,21010.00
Department for Education,DEPARTMENT FOR EDUCATION,07/09/2015,Grants,Children's Services and Departmental Strategy Safeguarding Group,Grants to local authorities,SLOUGH BOROUGH COUNCIL,4000215869,317699.80
Department for Education,NATIONAL COLLEGE FOR TEACHING AND LEADERSHIP AGENCY,08/09/2015,Grants,Delivery Directorate,Grants to educational establishments,NEWPORT COMMUNITY SCHOOL,4000215877,40000.00
Department for Education,NATIONAL COLLEGE FOR TEACHING AND LEADERSHIP AGENCY,08/09/2015,Grants,Delivery Directorate,Grants to educational establishments,NEWPORT COMMUNITY SCHOOL,4000215877,6000.00
Department for Education,NATIONAL COLLEGE FOR TEACHING AND LEADERSHIP AGENCY,08/09/2015,Grants,Delivery Directorate,Grants to educational establishments,THE WESTLANDS SCHOOL,4000215878,50000.00
Department for Education,NATIONAL COLLEGE FOR TEACHING AND LEADERSHIP AGENCY,08/09/2015,Grants,Delivery Directorate,Grants to educational establishments,THE WESTLANDS SCHOOL,4000215878,6000.00
Department for Education,DEPARTMENT FOR EDUCATION,08/09/2015,Programme costs,"Childcare, Special Educational Needs and Children's Strategy Group",Funding to deliver policies (excluding consultancy) paid to third parties via a service delivery contract,NCB,4000215881,3186534.00
Department for Education,NATIONAL COLLEGE FOR TEACHING AND LEADERSHIP AGENCY,08/09/2015,Grants,Delivery Directorate,Grants to educational establishments,THE KEMNAL ACADEMIES TRUST,4000215882,40000.00
Department for Education,NATIONAL COLLEGE FOR TEACHING AND LEADERSHIP AGENCY,08/09/2015,Grants,Delivery Directorate,Grants to educational establishments,THE KEMNAL ACADEMIES TRUST,4000215882,6000.00
Department for Education,NATIONAL COLLEGE FOR TEACHING AND LEADERSHIP AGENCY,08/09/2015,Grants,Delivery Directorate,Grants to educational establishments,ST CLEMENT DANES SCHOOL,4000215888,22450.00
Department for Education,NATIONAL COLLEGE FOR TEACHING AND LEADERSHIP AGENCY,08/09/2015,Grants,Delivery Directorate,Grants to educational establishments,ST CLEMENT DANES SCHOOL,4000215888,32456.00
Department for Education,NATIONAL COLLEGE FOR TEACHING AND LEADERSHIP AGENCY,08/09/2015,Grants,Delivery Directorate,Grants to educational establishments,ST CLEMENT DANES SCHOOL,4000215888,6000.00
Department for Education,NATIONAL COLLEGE FOR TEACHING AND LEADERSHIP AGENCY,08/09/2015,Grants,Delivery Directorate,Grants to educational establishments,ST ANGELAS URSULINE SCHOOL,4000215891,50000.00
Department for Education,NATIONAL COLLEGE FOR TEACHING AND LEADERSHIP AGENCY,08/09/2015,Grants,Delivery Directorate,Grants to educational establishments,ST PETERS CATHOLIC PRIMARY SCHOOL,4000215895,40000.00
Department for Education,NATIONAL COLLEGE FOR TEACHING AND LEADERSHIP AGENCY,08/09/2015,Grants,Delivery Directorate,Grants to educational establishments,ST PETERS CATHOLIC PRIMARY SCHOOL,4000215895,6000.00
Department for Education,NATIONAL COLLEGE FOR TEACHING AND LEADERSHIP AGENCY,08/09/2015,Grants,Delivery Directorate,Grants to educational establishments,OUTWOOD GRANGE ACADEMY TS ACCOUNT,4000215901,27507.50
Department for Education,NATIONAL COLLEGE FOR TEACHING AND LEADERSHIP AGENCY,08/09/2015,Grants,Delivery Directorate,Grants to educational establishments,OUTWOOD GRANGE ACADEMY TS ACCOUNT,4000215901,9890.00
Department for Education,NATIONAL COLLEGE FOR TEACHING AND LEADERSHIP AGENCY,08/09/2015,Grants,Delivery Directorate,Grants to educational establishments,OUTWOOD GRANGE ACADEMY TS ACCOUNT,4000215901,100350.00
Department for Education,NATIONAL COLLEGE FOR TEACHING AND LEADERSHIP AGENCY,08/09/2015,Grants,Delivery Directorate,Grants to educational establishments,OUTWOOD GRANGE ACADEMY TS ACCOUNT,4000215901,24000.00
Department for Education,NATIONAL COLLEGE FOR TEACHING AND LEADERSHIP AGENCY,08/09/2015,Grants,Delivery Directorate,Grants to educational establishments,GEORGE STEPHENSON HIGH SCHOOL BCAP ACC,4000215904,30000.00
Department for Education,NATIONAL COLLEGE FOR TEACHING AND LEADERSHIP AGENCY,08/09/2015,Grants,Delivery Directorate,Grants to educational establishments,GEORGE STEPHENSON HIGH SCHOOL BCAP ACC,4000215904,50000.00
Department for Education,NATIONAL COLLEGE FOR TEACHING AND LEADERSHIP AGENCY,08/09/2015,Grants,Delivery Directorate,Grants to educational establishments,GEORGE STEPHENSON HIGH SCHOOL BCAP ACC,4000215904,6000.00
Department for Education,NATIONAL COLLEGE FOR TEACHING AND LEADERSHIP AGENCY,08/09/2015,Grants,Delivery Directorate,Grants to educational establishments,POUND HILL INFANT SCHOOL,4000215905,35000.00
Department for Education,NATIONAL COLLEGE FOR TEACHING AND LEADERSHIP AGENCY,08/09/2015,Grants,Delivery Directorate,Grants to educational establishments,POUND HILL INFANT SCHOOL,4000215905,6000.00
Department for Education,DEPARTMENT FOR EDUCATION,11/09/2015,Professional Services Other,Families Group,"Fees / expenses of professionals, for example to implement advice or changes",DELOITTE LLP,4000216215,309205.22
Department for Education,DEPARTMENT FOR EDUCATION,08/09/2015,Personnel Related,Human Resources Group,Payment towards the costs of running the EU Fast Stream Programme,HMRC,4000215914,41000.00
Department for Education,NATIONAL COLLEGE FOR TEACHING AND LEADERSHIP AGENCY,08/09/2015,Grants,Delivery Directorate,Grants to educational establishments,ST HUGHS COMMUNICATION & INTERACTION COLLEGE TS ACCOUNT,4000215917,40000.00
Department for Education,NATIONAL COLLEGE FOR TEACHING AND LEADERSHIP AGENCY,08/09/2015,Grants,Delivery Directorate,Grants to educational establishments,HOLY ROSARY CATHOLIC PRIMARY SCHOOL TS ACCOUNT,4000215918,40000.00
Department for Education,NATIONAL COLLEGE FOR TEACHING AND LEADERSHIP AGENCY,08/09/2015,Grants,Delivery Directorate,Grants to educational establishments,COLMORE JUNIOR SCHOOL TS ACCOUNT,4000215920,40000.00
Department for Education,NATIONAL COLLEGE FOR TEACHING AND LEADERSHIP AGENCY,08/09/2015,Grants,Delivery Directorate,Grants to educational establishments,COLMORE JUNIOR SCHOOL TS ACCOUNT,4000215920,6000.00
Department for Education,NATIONAL COLLEGE FOR TEACHING AND LEADERSHIP AGENCY,08/09/2015,Grants,Delivery Directorate,Grants to educational establishments,THE ROWAN SCHOOL,4000215922,40000.00
Department for Education,NATIONAL COLLEGE FOR TEACHING AND LEADERSHIP AGENCY,08/09/2015,Grants,Delivery Directorate,Grants to educational establishments,THE ROWAN SCHOOL,4000215922,6000.00
Department for Education,NATIONAL COLLEGE FOR TEACHING AND LEADERSHIP AGENCY,08/09/2015,Grants,Delivery Directorate,Grants to educational establishments,COOKHAM NURSERY SCHOOL,4000215928,50000.00
Department for Education,NATIONAL COLLEGE FOR TEACHING AND LEADERSHIP AGENCY,08/09/2015,Grants,Delivery Directorate,Grants to educational establishments,KINGSTON PRIMARY SCHOOL,4000215929,50000.00
Department for Education,NATIONAL COLLEGE FOR TEACHING AND LEADERSHIP AGENCY,08/09/2015,Grants,Delivery Directorate,Grants to educational establishments,KINGSTON PRIMARY SCHOOL,4000215929,6000.00
Department for Education,NATIONAL COLLEGE FOR TEACHING AND LEADERSHIP AGENCY,08/09/2015,Grants,Delivery Directorate,Grants to educational establishments,BELGRAVE ST BARTHOLOMEWS ACADEMY TS ACCOUNT,4000215934,36667.00
Department for Education,NATIONAL COLLEGE FOR TEACHING AND LEADERSHIP AGENCY,08/09/2015,Grants,Delivery Directorate,"Grants paid to organisations including agencies, arms length bodies and educational establishments",BELGRAVE ST BARTHOLOMEWS ACADEMY TS ACCOUNT,4000215934,450.00
Department for Education,NATIONAL COLLEGE FOR TEACHING AND LEADERSHIP AGENCY,08/09/2015,Grants,Delivery Directorate,Grants to educational establishments,HUNTINGDON ACADEMY TS ACCOUNT,4000215935,40000.00
Department for Education,NATIONAL COLLEGE FOR TEACHING AND LEADERSHIP AGENCY,08/09/2015,Grants,Delivery Directorate,Grants to educational establishments,HUNTINGDON ACADEMY TS ACCOUNT,4000215935,6000.00
Department for Education,NATIONAL COLLEGE FOR TEACHING AND LEADERSHIP AGENCY,08/09/2015,Grants,Delivery Directorate,Grants to educational establishments,PRINCE BISHOPS COMMUNITY PRIMARY SCHOOL,4000215945,40000.00
Department for Education,NATIONAL COLLEGE FOR TEACHING AND LEADERSHIP AGENCY,08/09/2015,Grants,Delivery Directorate,Grants to educational establishments,PRINCE BISHOPS COMMUNITY PRIMARY SCHOOL,4000215945,6000.00
Department for Education,NATIONAL COLLEGE FOR TEACHING AND LEADERSHIP AGENCY,08/09/2015,Grants,Delivery Directorate,Grants to educational establishments,BACKWELL SCHOOL,4000215961,15000.00
Department for Education,NATIONAL COLLEGE FOR TEACHING AND LEADERSHIP AGENCY,08/09/2015,Grants,Delivery Directorate,Grants to educational establishments,BACKWELL SCHOOL,4000215961,5000.00
Department for Education,NATIONAL COLLEGE FOR TEACHING AND LEADERSHIP AGENCY,08/09/2015,Grants,Delivery Directorate,Grants to educational establishments,BACKWELL SCHOOL,4000215961,40000.00
Department for Education,NATIONAL COLLEGE FOR TEACHING AND LEADERSHIP AGENCY,08/09/2015,Grants,Delivery Directorate,Grants to educational establishments,BACKWELL SCHOOL,4000215961,6000.00
Department for Education,NATIONAL COLLEGE FOR TEACHING AND LEADERSHIP AGENCY,08/09/2015,Grants,Delivery Directorate,Grants to educational establishments,LATCHMERE SCHOOL,4000215966,40000.00
Department for Education,DEPARTMENT FOR EDUCATION,16/09/2015,Professional Services Consultancy and Contingent Labour,Adoption and Children in Care Division,"Advisory services including fees, travel and expenses",METHODS CONSULTING LTD,4000216419,21432.00
Department for Education,DEPARTMENT FOR EDUCATION,23/09/2015,Professional Services Consultancy and Contingent Labour,Children's Services and Departmental Strategy Safeguarding Group,"Advisory services including fees, travel and expenses",PENNA PLC,4000216825,65971.15
Department for Education,DEPARTMENT FOR EDUCATION,14/09/2015,Professional Services Other,Information Technology Group,"Fees / expenses of professionals, for example to implement advice or changes",LIBERATA UK LTD,4000216255,104994.00
Department for Education,NATIONAL COLLEGE FOR TEACHING AND LEADERSHIP AGENCY,18/09/2015,Professional Services Other,Delivery Directorate,"Fees / expenses of professionals, for example to implement advice or changes",FUTURE LEADERS LTD,4000216581,210000.00
Department for Education,NATIONAL COLLEGE FOR TEACHING AND LEADERSHIP AGENCY,08/09/2015,Grants,Delivery Directorate,Grants to educational establishments,WALDEGRAVE SCHOOL FOR GIRLS,4000215976,40000.00
Department for Education,NATIONAL COLLEGE FOR TEACHING AND LEADERSHIP AGENCY,08/09/2015,Grants,Delivery Directorate,Grants to educational establishments,WALDEGRAVE SCHOOL FOR GIRLS,4000215976,6000.00
Department for Education,NATIONAL COLLEGE FOR TEACHING AND LEADERSHIP AGENCY,08/09/2015,Grants,Delivery Directorate,Grants to educational establishments,THE ARTHUR TERRY SCHOOL SCITT,4000215980,40000.00
Department for Education,NATIONAL COLLEGE FOR TEACHING AND LEADERSHIP AGENCY,08/09/2015,Grants,Delivery Directorate,Grants to educational establishments,THE ARTHUR TERRY SCHOOL SCITT,4000215980,6000.00
Department for Education,NATIONAL COLLEGE FOR TEACHING AND LEADERSHIP AGENCY,08/09/2015,Grants,Delivery Directorate,Grants to educational establishments,ST BEDE'S CATHOLIC SCHOOL & SIXTH FORM CENTRE,4000215986,30000.00
Department for Education,NATIONAL COLLEGE FOR TEACHING AND LEADERSHIP AGENCY,08/09/2015,Grants,Delivery Directorate,Grants to educational establishments,ST BEDE'S CATHOLIC SCHOOL & SIXTH FORM CENTRE,4000215986,50000.00
Department for Education,NATIONAL COLLEGE FOR TEACHING AND LEADERSHIP AGENCY,08/09/2015,Grants,Delivery Directorate,Grants to educational establishments,ST BEDE'S CATHOLIC SCHOOL & SIXTH FORM CENTRE,4000215986,6000.00
Department for Education,NATIONAL COLLEGE FOR TEACHING AND LEADERSHIP AGENCY,18/09/2015,Professional Services Other,Operations Directorate,"Fees / expenses of professionals, for example to implement advice or changes",FUTURE LEADERS LTD,4000216581,8000.00
Department for Education,DEPARTMENT FOR EDUCATION,23/09/2015,ICT,Information Technology Group,ICT Services,SKILLS FUNDING AGENCY,4000216819,256250.40
Department for Education,NATIONAL COLLEGE FOR TEACHING AND LEADERSHIP AGENCY,08/09/2015,Grants,Delivery Directorate,Grants to educational establishments,COMBERTON ACADEMY TRUST,4000216003,29990.00
Department for Education,NATIONAL COLLEGE FOR TEACHING AND LEADERSHIP AGENCY,08/09/2015,Grants,Delivery Directorate,Grants to educational establishments,COMBERTON ACADEMY TRUST,4000216003,40500.00
Department for Education,NATIONAL COLLEGE FOR TEACHING AND LEADERSHIP AGENCY,08/09/2015,Grants,Delivery Directorate,Grants to educational establishments,COMBERTON ACADEMY TRUST,4000216003,6000.00
Department for Education,NATIONAL COLLEGE FOR TEACHING AND LEADERSHIP AGENCY,08/09/2015,Grants,Delivery Directorate,Grants to educational establishments,THE WROXHAM SCHOOL TS ACCOUNT,4000216006,40000.00
Department for Education,NATIONAL COLLEGE FOR TEACHING AND LEADERSHIP AGENCY,08/09/2015,Grants,Delivery Directorate,Grants to educational establishments,THE WROXHAM SCHOOL TS ACCOUNT,4000216006,6000.00
Department for Education,NATIONAL COLLEGE FOR TEACHING AND LEADERSHIP AGENCY,08/09/2015,Grants,Delivery Directorate,Grants to educational establishments,SCHOOL PARTNERSHIP TRUST ACADEMIES GARFORTH,4000216007,28500.00
Department for Education,NATIONAL COLLEGE FOR TEACHING AND LEADERSHIP AGENCY,08/09/2015,Grants,Delivery Directorate,Grants to educational establishments,SCHOOL PARTNERSHIP TRUST ACADEMIES GARFORTH,4000216007,6000.00
Department for Education,NATIONAL COLLEGE FOR TEACHING AND LEADERSHIP AGENCY,08/09/2015,Grants,Delivery Directorate,Grants to educational establishments,TENDERING TECHNOLOGY COLLEGE TS ACCOUNT,4000216008,50000.00
Department for Education,NATIONAL COLLEGE FOR TEACHING AND LEADERSHIP AGENCY,08/09/2015,Grants,Delivery Directorate,Grants to educational establishments,TENDERING TECHNOLOGY COLLEGE TS ACCOUNT,4000216008,6000.00
Department for Education,DEPARTMENT FOR EDUCATION,11/09/2015,Communications,Information Technology Group,Digital media and web production,PROLOG,4000216179,37353.84
Department for Education,DEPARTMENT FOR EDUCATION,09/09/2015,Grants,Assessment and Curriculum and General Qualifications Group,Grants to third sector organisations / not for profit organisations and other businesses,THE BRITISH MUSEUM GREAT COURT LTD,4000216038,56484.61
Department for Education,STANDARDS AND TESTING AGENCY,09/09/2015,Programme costs,Test Development Division,Funding to deliver policies (excluding consultancy) paid to third parties via a service delivery contract,RNIB,4000216098,21104.00
Department for Education,DEPARTMENT FOR EDUCATION,10/09/2015,Grants,Academies Delivery Group,Grants to educational establishments,THE HIGHWAY PRIMARY SCHOOL,4000216099,25000.00
Department for Education,DEPARTMENT FOR EDUCATION,10/09/2015,Grants,Academies Delivery Group,Grants to educational establishments,THE HENRY BOX SCHOOL,4000216111,100000.00
Department for Education,DEPARTMENT FOR EDUCATION,10/09/2015,Facilities,Property Asset Management Group,Property management,METHODS CONSULTING LTD,4000216113,88225.25
Department for Education,DEPARTMENT FOR EDUCATION,10/09/2015,Programme costs,Closing the Gap Group,Funding to deliver policies (excluding consultancy) paid to third parties via a service delivery contract,RURAL PAYMENTS AGENCY,4000216118,55171.03
Department for Education,DEPARTMENT FOR EDUCATION,10/09/2015,Grants,Academies Delivery Group,Grants to educational establishments,EDWALTON PRIMARY SCHOOL,4000216126,25000.00
Department for Education,DEPARTMENT FOR EDUCATION,10/09/2015,Grants,Academies Delivery Group,Grants to educational establishments,FARNBOROUGH PRIMARY SCHOOL,4000216130,70000.00
Department for Education,NATIONAL COLLEGE FOR TEACHING AND LEADERSHIP AGENCY,10/09/2015,Programme costs,Delivery Directorate,Funding to deliver policies (excluding consultancy) paid to third parties via a service delivery contract,Teach First Initial Teacher Development,4000216141,2812330.89
Department for Education,DEPARTMENT FOR EDUCATION,10/09/2015,Grants,Academies Delivery Group,Grants to educational establishments,WEST THORNTON PRIMARY ACADEMY,4000216142,70000.00
Department for Education,DEPARTMENT FOR EDUCATION,11/09/2015,Professional Services Consultancy and Contingent Labour,Information Technology Group,Costs related to temporary workers,ALPINE RESOURCING LTD,4000216212,31199.81
Department for Education,DEPARTMENT FOR EDUCATION,23/09/2015,Professional Services Consultancy and Contingent Labour,Regional School Commissioners Group,Costs related to temporary workers,BROOK STREET (UK) LTD,4000216838,762.91
Department for Education,DEPARTMENT FOR EDUCATION,10/09/2015,Grants,Academies Delivery Group,Grants to educational establishments,TRURO & PENWITH ACADEMY TRUST,4000216149,25000.00
Department for Education,DEPARTMENT FOR EDUCATION,10/09/2015,Grants,Academies Delivery Group,Grants to educational establishments,ASPIRE ACADEMY TRUST,4000216157,70000.00
Department for Education,DEPARTMENT FOR EDUCATION,10/09/2015,Grants,Children's Services and Departmental Strategy Safeguarding Group,Grants to local authorities / other establishments within aggregate external funding or aggregate exchequer grant,DONCASTER METROPOLITAN BOROUGH COUNCIL,4000216159,1337945.00
Department for Education,DEPARTMENT FOR EDUCATION,10/09/2015,Grants,Families Group,Grants to third sector organisations / not for profit organisations and other businesses,NORFOLK & SUFFOLK NHS FOUNDATION TRUST,4000216160,49921.86
Department for Education,DEPARTMENT FOR EDUCATION,10/09/2015,Grants,Children's Services and Departmental Strategy Safeguarding Group,Grants to third sector organisations / not for profit organisations and other businesses,DONCASTER CHILDRENS TRUST,4000216162,118528.00
Department for Education,DEPARTMENT FOR EDUCATION,10/09/2015,Grants,Academies Delivery Group,Grants to educational establishments,BLENHEIM PRIMARY SCHOOL,4000216166,25000.00
Department for Education,DEPARTMENT FOR EDUCATION,10/09/2015,Grants,Academies Delivery Group,Capital grants paid to an educational establishment,DERBY DIOCESAN ACADEMY TRUST,4000216167,31575.51
Department for Education,DEPARTMENT FOR EDUCATION,24/09/2015,ICT,Adoption and Children in Care Division,ICT Services,CAPGEMINI UK PLC,4000216918,25800.00
Department for Education,DEPARTMENT FOR EDUCATION,18/09/2015,Professional Services Other,Academies Delivery Group,"Fees / expenses of professionals, for example to implement advice or changes",BRIGHT GREEN LEARNING,4000216589,30019.86
Department for Education,DEPARTMENT FOR EDUCATION,11/09/2015,Communications,Information Technology Group,Digital media and web production,PROLOG,4000216179,12672.00
Department for Education,NATIONAL COLLEGE FOR TEACHING AND LEADERSHIP AGENCY,11/09/2015,Communications,Operations Directorate,Digital media and web production,PROLOG,4000216179,1122.00
Department for Education,DEPARTMENT FOR EDUCATION,14/09/2015,Communications,Information Technology Group,Digital media and web production,PROLOG,4000216241,63175.42
Department for Education,DEPARTMENT FOR EDUCATION,09/09/2015,Communications,Children's Services and Departmental Strategy Safeguarding Group,Marketing services,GEORGE & DRAGON LONDON LLP,4000216015,41340.00
Department for Education,NATIONAL COLLEGE FOR TEACHING AND LEADERSHIP AGENCY,11/09/2015,Office Solutions,Operations Directorate,Document Storage,PROLOG,4000216179,1178.53
Department for Education,NATIONAL COLLEGE FOR TEACHING AND LEADERSHIP AGENCY,11/09/2015,Office Solutions,Operations Directorate,Office Supplies,PROLOG,4000216179,608.85
Department for Education,NATIONAL COLLEGE FOR TEACHING AND LEADERSHIP AGENCY,11/09/2015,Office Solutions,Operations Directorate,Document Storage,PROLOG,4000216179,85.81
Department for Education,NATIONAL COLLEGE FOR TEACHING AND LEADERSHIP AGENCY,11/09/2015,Office Solutions,Operations Directorate,Post and courier services,PROLOG,4000216179,6466.01
Department for Education,DEPARTMENT FOR EDUCATION,11/09/2015,Facilities,Strategic Analysis and Research Group,"Building maintenance and repair, including repainting, replacing flooring, etc.",DTZ MANAGEMENT SERVICES LTD,4000216193,23704.49
Department for Education,DEPARTMENT FOR EDUCATION,11/09/2015,Programme costs,Adoption and Children in Care Division,Funding to deliver policies (excluding consultancy) paid to third parties via a service delivery contract,THE FOSTERING NETWORK,4000216204,48617.81
Department for Education,DEPARTMENT FOR EDUCATION,11/09/2015,Facilities,Property Asset Management Group,Building management,GVA GRIMLEY LTD,4000216207,136770.74
Department for Education,DEPARTMENT FOR EDUCATION,11/09/2015,Facilities,Property Asset Management Group,Rent,GVA GRIMLEY LTD,4000216207,17893.20
Department for Education,DEPARTMENT FOR EDUCATION,23/09/2015,Professional Services Consultancy and Contingent Labour,Public Communications Group,Costs related to temporary workers,BROOK STREET (UK) LTD,4000216838,75789.56
Department for Education,DEPARTMENT FOR EDUCATION,24/09/2015,Professional Services Consultancy and Contingent Labour,Public Communications Group,Costs related to temporary workers,BROOK STREET (UK) LTD,4000216935,36953.33
Department for Education,DEPARTMENT FOR EDUCATION,10/09/2015,Professional Services Consultancy and Contingent Labour,Information Technology Group,Costs related to temporary workers,CAPITA BUSINESS SERVICES LTD,4000216148,67346.07
Department for Education,DEPARTMENT FOR EDUCATION,11/09/2015,Professional Services Other,Teachers and Teaching Group,Interpretations and translation services,PROLOG,4000216179,251.00
Department for Education,DEPARTMENT FOR EDUCATION,16/09/2015,Communications,Communications Group,Marketing services,UCAS MEDIA LTD,4000216434,151800.00
Department for Education,DEPARTMENT FOR EDUCATION,11/09/2015,Communications,Communications Group,Marketing services - printing and publication,PROLOG,4000216179,14422.80
Department for Education,DEPARTMENT FOR EDUCATION,14/09/2015,Communications,Information Technology Group,Marketing services - printing and publication,LIBERATA UK LTD,4000216255,25348.80
Department for Education,NATIONAL COLLEGE FOR TEACHING AND LEADERSHIP AGENCY,11/09/2015,Communications,Operations Directorate,"Publicity, advertising, media advertising campaigns (excluding recruitment adverts)",CARAT,4000216218,218933.53
Department for Education,DEPARTMENT FOR EDUCATION,11/09/2015,Facilities,Property Asset Management Group,"Building maintenance and repair, including repainting, replacing flooring, etc.",SODEXO LTD,4000216224,126223.55
Department for Education,DEPARTMENT FOR EDUCATION,14/09/2015,Grants,Academies Delivery Group,Grants to educational establishments,ST EDMUNDSBURY & IPSWICH DIOCESAN ACADEMY TRUST,4000216227,70000.00
Department for Education,DEPARTMENT FOR EDUCATION,14/09/2015,Grants,Academies Delivery Group,Grants to educational establishments,FINSTOCK CE PRIMARY SCHOOL,4000216228,30000.00
Department for Education,DEPARTMENT FOR EDUCATION,14/09/2015,Grants,Office of the Schools Commissioner Group,Grants to educational establishments,HAILEYBURY ACADEMY TRUST,4000216229,75000.00
Department for Education,DEPARTMENT FOR EDUCATION,14/09/2015,Grants,Academies Delivery Group,Grants to educational establishments,QUEEN EMMAS PRIMARY SCHOOL,4000216230,25000.00
Department for Education,NATIONAL COLLEGE FOR TEACHING AND LEADERSHIP AGENCY,11/09/2015,Communications,Operations Directorate,"Publicity, advertising, media advertising campaigns (excluding recruitment adverts)",CARAT,4000216218,11551.71
Department for Education,DEPARTMENT FOR EDUCATION,14/09/2015,Grants,Academies Delivery Group,Grants to educational establishments,SAMUEL WARD ACADEMY TRUST,4000216243,25000.00
Department for Education,DEPARTMENT FOR EDUCATION,10/09/2015,Professional Services Consultancy and Contingent Labour,Information Technology Group,Costs related to temporary workers,CAPITA BUSINESS SERVICES LTD,4000216148,17634.24
Department for Education,DEPARTMENT FOR EDUCATION,14/09/2015,Professional Services Other,Information Technology Group,"Fees / expenses of professionals, for example to implement advice or changes",LIBERATA UK LTD,4000216255,123424.50
Department for Education,DEPARTMENT FOR EDUCATION,14/09/2015,Programme costs,"Childcare, Special Educational Needs and Children's Strategy Group",Funding to deliver policies (excluding consultancy) paid to third parties via a service delivery contract,NATIONAL AUTISTIC SOCIETY,4000216248,54166.66
Department for Education,NATIONAL COLLEGE FOR TEACHING AND LEADERSHIP AGENCY,11/09/2015,Communications,Operations Directorate,"Publicity, advertising, media advertising campaigns (excluding recruitment adverts)",CARAT,4000216218,6666.88
Department for Education,DEPARTMENT FOR EDUCATION,24/09/2015,ICT,Systems and Accountability Group,ICT Services,CAPGEMINI UK PLC,4000216918,106162.47
Department for Education,DEPARTMENT FOR EDUCATION,14/09/2015,Professional Services Consultancy and Contingent Labour,Information Technology Group,Costs related to temporary workers,METHODS CONSULTING LTD,4000216246,37620.00
Department for Education,DEPARTMENT FOR EDUCATION,29/09/2015,Professional Services Other,Children's Services and Departmental Strategy Safeguarding Group,Legal services provided externally (excluding Treasury Solicitor) ,BURGES SALMON,4000217043,32000.00
Department for Education,DEPARTMENT FOR EDUCATION,24/09/2015,ICT,Information Technology Group,ICT Services - hardware maintenance and support,CAPGEMINI UK PLC,4000216918,90308.23
Department for Education,DEPARTMENT FOR EDUCATION,14/09/2015,Facilities,Property Asset Management Group,Rent,GVA GRIMLEY LTD,4000216276,3790999.37
Department for Education,DEPARTMENT FOR EDUCATION,14/09/2015,Grants,Academies Delivery Group,Grants to third sector organisations / not for profit organisations and other businesses,ENQUIRE LEARNING TRUST,4000216278,25000.00
Department for Education,NATIONAL COLLEGE FOR TEACHING AND LEADERSHIP AGENCY,11/09/2015,Communications,Delivery Directorate,"Publicity, advertising, media advertising campaigns (excluding recruitment adverts)",CARAT,4000216218,29382.92
Department for Education,NATIONAL COLLEGE FOR TEACHING AND LEADERSHIP AGENCY,14/09/2015,Communications,Operations Directorate,"Publicity, advertising, media advertising campaigns (excluding recruitment adverts)",INFERNO LTD,4000216280,197311.73
Department for Education,NATIONAL COLLEGE FOR TEACHING AND LEADERSHIP AGENCY,14/09/2015,Communications,Operations Directorate,"Publicity, advertising, media advertising campaigns (excluding recruitment adverts)",INFERNO LTD,4000216280,5690.50
Department for Education,NATIONAL COLLEGE FOR TEACHING AND LEADERSHIP AGENCY,14/09/2015,Communications,Operations Directorate,"Publicity, advertising, media advertising campaigns (excluding recruitment adverts)",INFERNO LTD,4000216280,6350.75
Department for Education,DEPARTMENT FOR EDUCATION,29/09/2015,ICT,Closing the Gap Group,ICT Services - hardware maintenance and support,NORTHGATE PUBLIC SERVICES UK,4000217038,126764.00
Department for Education,DEPARTMENT FOR EDUCATION,14/09/2015,Grants,Free School Group,Grants to educational establishments,HARROW ACADEMIES TRUST,4000216289,28125.00
Department for Education,DEPARTMENT FOR EDUCATION,14/09/2015,Grants,Free School Group,Grants to third sector organisations / not for profit organisations and other businesses,GEMS LEARNING TRUST,4000216290,65000.00
Department for Education,DEPARTMENT FOR EDUCATION,14/09/2015,Grants,Free School Group,Grants to educational establishments,THE RUNNYMEDE SCHOOL,4000216293,30000.00
Department for Education,DEPARTMENT FOR EDUCATION,15/09/2015,Facilities,Property Asset Management Group,Payment for the annual Carbon Reduction Commitment liability.,DECC,4000216295,149978.00
Department for Education,NATIONAL COLLEGE FOR TEACHING AND LEADERSHIP AGENCY,15/09/2015,Grants,Delivery Directorate,Grants to educational establishments,SWAVESEY VILLAGE COLLEGE,4000216299,15000.00
Department for Education,NATIONAL COLLEGE FOR TEACHING AND LEADERSHIP AGENCY,15/09/2015,Grants,Delivery Directorate,Grants to educational establishments,SWAVESEY VILLAGE COLLEGE,4000216299,40000.00
Department for Education,DEPARTMENT FOR EDUCATION,15/09/2015,Grants,Assessment and Curriculum and General Qualifications Group,Grants to third sector organisations / not for profit organisations and other businesses,NATIONAL SOCIETY C OF E,4000216303,202350.00
Department for Education,NATIONAL COLLEGE FOR TEACHING AND LEADERSHIP AGENCY,15/09/2015,Grants,Delivery Directorate,Grants to educational establishments,SPONNE SCHOOL,4000216311,30000.00
Department for Education,NATIONAL COLLEGE FOR TEACHING AND LEADERSHIP AGENCY,15/09/2015,Grants,Delivery Directorate,Grants to educational establishments,SPONNE SCHOOL,4000216311,50000.00
Department for Education,NATIONAL COLLEGE FOR TEACHING AND LEADERSHIP AGENCY,15/09/2015,Grants,Delivery Directorate,Grants to educational establishments,SPONNE SCHOOL,4000216311,6000.00
Department for Education,NATIONAL COLLEGE FOR TEACHING AND LEADERSHIP AGENCY,15/09/2015,Grants,Delivery Directorate,Grants to educational establishments,NEWLANDS SPRING PRIMARY SCHOOL,4000216312,40000.00
Department for Education,NATIONAL COLLEGE FOR TEACHING AND LEADERSHIP AGENCY,15/09/2015,Grants,Delivery Directorate,Grants to educational establishments,NEWLANDS SPRING PRIMARY SCHOOL,4000216312,6000.00
Department for Education,NATIONAL COLLEGE FOR TEACHING AND LEADERSHIP AGENCY,15/09/2015,Grants,Delivery Directorate,Grants to educational establishments,WHITLEY BAY HIGH SCHOOL,4000216313,40000.00
Department for Education,NATIONAL COLLEGE FOR TEACHING AND LEADERSHIP AGENCY,15/09/2015,Grants,Delivery Directorate,Grants to educational establishments,GLENTHORNE HIGH SCHOOL,4000216314,40000.00
Department for Education,NATIONAL COLLEGE FOR TEACHING AND LEADERSHIP AGENCY,15/09/2015,Grants,Delivery Directorate,Grants to educational establishments,GLENTHORNE HIGH SCHOOL,4000216314,6000.00
Department for Education,DEPARTMENT FOR EDUCATION,15/09/2015,Programme costs,"Childcare, Special Educational Needs and Children's Strategy Group",Funding to deliver policies (excluding consultancy) paid to third parties via a service delivery contract,I CAN CHARITY,4000216315,162500.00
Department for Education,NATIONAL COLLEGE FOR TEACHING AND LEADERSHIP AGENCY,15/09/2015,Grants,Delivery Directorate,Grants to educational establishments,GATLEY PRIMARY SCHOOL,4000216318,40000.00
Department for Education,NATIONAL COLLEGE FOR TEACHING AND LEADERSHIP AGENCY,15/09/2015,Grants,Delivery Directorate,Grants to educational establishments,GATLEY PRIMARY SCHOOL,4000216318,6000.00
Department for Education,NATIONAL COLLEGE FOR TEACHING AND LEADERSHIP AGENCY,15/09/2015,Grants,Delivery Directorate,Grants to educational establishments,MANOR CHURCH OF ENGLAND ACADEMY,4000216319,5693.33
Department for Education,NATIONAL COLLEGE FOR TEACHING AND LEADERSHIP AGENCY,15/09/2015,Grants,Delivery Directorate,Grants to educational establishments,MANOR CHURCH OF ENGLAND ACADEMY,4000216319,40000.00
Department for Education,NATIONAL COLLEGE FOR TEACHING AND LEADERSHIP AGENCY,15/09/2015,Grants,Delivery Directorate,Grants to educational establishments,MANOR CHURCH OF ENGLAND ACADEMY,4000216319,6000.00
Department for Education,NATIONAL COLLEGE FOR TEACHING AND LEADERSHIP AGENCY,15/09/2015,Grants,Delivery Directorate,Grants to educational establishments,OUR LADY OF PITY CATHOLIC PRIMARY SCHOOL,4000216320,50000.00
Department for Education,NATIONAL COLLEGE FOR TEACHING AND LEADERSHIP AGENCY,15/09/2015,Grants,Delivery Directorate,Grants to educational establishments,OUR LADY OF PITY CATHOLIC PRIMARY SCHOOL,4000216320,6000.00
Department for Education,NATIONAL COLLEGE FOR TEACHING AND LEADERSHIP AGENCY,15/09/2015,Grants,Delivery Directorate,Grants to educational establishments,BENTLEY WOOD HIGH SCHOOL TS ACCOUNT,4000216325,5000.00
Department for Education,NATIONAL COLLEGE FOR TEACHING AND LEADERSHIP AGENCY,15/09/2015,Grants,Delivery Directorate,Grants to educational establishments,BENTLEY WOOD HIGH SCHOOL TS ACCOUNT,4000216325,40000.00
Department for Education,NATIONAL COLLEGE FOR TEACHING AND LEADERSHIP AGENCY,15/09/2015,Grants,Delivery Directorate,Grants to educational establishments,BENTLEY WOOD HIGH SCHOOL TS ACCOUNT,4000216325,6000.00
Department for Education,NATIONAL COLLEGE FOR TEACHING AND LEADERSHIP AGENCY,15/09/2015,Grants,Delivery Directorate,Grants to educational establishments,ST PETERS CE PRIMARY SCHOOL TS ACCOUNT,4000216326,40000.00
Department for Education,NATIONAL COLLEGE FOR TEACHING AND LEADERSHIP AGENCY,15/09/2015,Grants,Delivery Directorate,Grants to educational establishments,ST PETERS CE PRIMARY SCHOOL TS ACCOUNT,4000216326,6000.00
Department for Education,NATIONAL COLLEGE FOR TEACHING AND LEADERSHIP AGENCY,15/09/2015,Grants,Delivery Directorate,Grants to educational establishments,DARRICK WOOD SCHOOL TS ACCOUNT,4000216327,22500.00
Department for Education,NATIONAL COLLEGE FOR TEACHING AND LEADERSHIP AGENCY,15/09/2015,Grants,Delivery Directorate,Grants to educational establishments,DARRICK WOOD SCHOOL TS ACCOUNT,4000216327,40000.00
Department for Education,NATIONAL COLLEGE FOR TEACHING AND LEADERSHIP AGENCY,15/09/2015,Grants,Delivery Directorate,Grants to educational establishments,DARRICK WOOD SCHOOL TS ACCOUNT,4000216327,6000.00
Department for Education,NATIONAL COLLEGE FOR TEACHING AND LEADERSHIP AGENCY,15/09/2015,Grants,Delivery Directorate,Grants to educational establishments,ST EDMUNDS NURSERY SCHOOL & CENTRE TS ACCOUNT,4000216328,40000.00
Department for Education,NATIONAL COLLEGE FOR TEACHING AND LEADERSHIP AGENCY,15/09/2015,Grants,Delivery Directorate,Grants to educational establishments,ST EDMUNDS NURSERY SCHOOL & CENTRE TS ACCOUNT,4000216328,6000.00
Department for Education,NATIONAL COLLEGE FOR TEACHING AND LEADERSHIP AGENCY,15/09/2015,Grants,Delivery Directorate,Grants to educational establishments,CHILDHAVEN COMMUNITY NURSERY SCHOOL BCAP,4000216329,50000.00
Department for Education,NATIONAL COLLEGE FOR TEACHING AND LEADERSHIP AGENCY,15/09/2015,Grants,Delivery Directorate,Grants to educational establishments,THEALE COFE PRIMARY SCHOOL BCAP ACC,4000216331,50000.00
Department for Education,NATIONAL COLLEGE FOR TEACHING AND LEADERSHIP AGENCY,15/09/2015,Grants,Delivery Directorate,Grants to educational establishments,THEALE COFE PRIMARY SCHOOL BCAP ACC,4000216331,6000.00
Department for Education,NATIONAL COLLEGE FOR TEACHING AND LEADERSHIP AGENCY,15/09/2015,Grants,Delivery Directorate,Grants to educational establishments,DAVENANT FOUNDATION SCHOOL TS ACCOUNT,4000216332,40000.00
Department for Education,NATIONAL COLLEGE FOR TEACHING AND LEADERSHIP AGENCY,15/09/2015,Grants,Delivery Directorate,Grants to educational establishments,DAVENANT FOUNDATION SCHOOL TS ACCOUNT,4000216332,6000.00
Department for Education,DEPARTMENT FOR EDUCATION,15/09/2015,Grants,Families Group,Grants to third sector organisations / not for profit organisations and other businesses,NSPCC,4000216333,195238.41
Department for Education,DEPARTMENT FOR EDUCATION,15/09/2015,Grants,"Childcare, Special Educational Needs and Children's Strategy Group",Grants to third sector organisations / not for profit organisations and other businesses,IN CONTROL PARTNERSHIPS,4000216337,28068.32
Department for Education,NATIONAL COLLEGE FOR TEACHING AND LEADERSHIP AGENCY,15/09/2015,Grants,Delivery Directorate,Grants to educational establishments,ST JAMES COFE HIGH SCHOOL TS ACC,4000216342,12500.00
Department for Education,NATIONAL COLLEGE FOR TEACHING AND LEADERSHIP AGENCY,15/09/2015,Grants,Delivery Directorate,Grants to educational establishments,ST JAMES COFE HIGH SCHOOL TS ACC,4000216342,40000.00
Department for Education,NATIONAL COLLEGE FOR TEACHING AND LEADERSHIP AGENCY,15/09/2015,Grants,Delivery Directorate,Grants to educational establishments,ST JAMES COFE HIGH SCHOOL TS ACC,4000216342,6000.00
Department for Education,NATIONAL COLLEGE FOR TEACHING AND LEADERSHIP AGENCY,15/09/2015,Grants,Delivery Directorate,Grants to educational establishments,HEARTLANDS ACADEMY,4000216344,15000.00
Department for Education,NATIONAL COLLEGE FOR TEACHING AND LEADERSHIP AGENCY,15/09/2015,Grants,Delivery Directorate,Grants to educational establishments,HEARTLANDS ACADEMY,4000216344,60000.00
Department for Education,NATIONAL COLLEGE FOR TEACHING AND LEADERSHIP AGENCY,15/09/2015,Grants,Delivery Directorate,Grants to educational establishments,HEARTLANDS ACADEMY,4000216344,6000.00
Department for Education,DEPARTMENT FOR EDUCATION,15/09/2015,Grants,Assessment and Curriculum and General Qualifications Group,Grants to third sector organisations / not for profit organisations and other businesses,CATHOLIC EDUCATION SERVICE,4000216349,87350.00
Department for Education,NATIONAL COLLEGE FOR TEACHING AND LEADERSHIP AGENCY,15/09/2015,Grants,Delivery Directorate,Grants to educational establishments,RANGE HIGH SCHOOL,4000216355,60000.00
Department for Education,NATIONAL COLLEGE FOR TEACHING AND LEADERSHIP AGENCY,15/09/2015,Grants,Delivery Directorate,Grants to educational establishments,CHEADLE HULME HIGH SCHOOL,4000216356,29500.00
Department for Education,NATIONAL COLLEGE FOR TEACHING AND LEADERSHIP AGENCY,15/09/2015,Grants,Delivery Directorate,Grants to educational establishments,CHEADLE HULME HIGH SCHOOL,4000216356,7500.00
Department for Education,NATIONAL COLLEGE FOR TEACHING AND LEADERSHIP AGENCY,15/09/2015,Grants,Delivery Directorate,Grants to educational establishments,CHEADLE HULME HIGH SCHOOL,4000216356,40000.00
Department for Education,NATIONAL COLLEGE FOR TEACHING AND LEADERSHIP AGENCY,15/09/2015,Grants,Delivery Directorate,Grants to educational establishments,CHEADLE HULME HIGH SCHOOL,4000216356,6000.00
Department for Education,NATIONAL COLLEGE FOR TEACHING AND LEADERSHIP AGENCY,15/09/2015,Grants,Delivery Directorate,Grants to educational establishments,COLUMBUS SCHOOL & COLLEGE,4000216357,5000.00
Department for Education,NATIONAL COLLEGE FOR TEACHING AND LEADERSHIP AGENCY,15/09/2015,Grants,Delivery Directorate,Grants to educational establishments,COLUMBUS SCHOOL & COLLEGE,4000216357,33900.00
Department for Education,NATIONAL COLLEGE FOR TEACHING AND LEADERSHIP AGENCY,15/09/2015,Grants,Delivery Directorate,Grants to educational establishments,GADDESBY PRIMARY SCHOOL,4000216358,50000.00
Department for Education,NATIONAL COLLEGE FOR TEACHING AND LEADERSHIP AGENCY,15/09/2015,Grants,Delivery Directorate,Grants to educational establishments,GADDESBY PRIMARY SCHOOL,4000216358,6000.00
Department for Education,DEPARTMENT FOR EDUCATION,15/09/2015,Facilities,Property Asset Management Group,"Building maintenance and repair, including repainting, replacing flooring, etc.",INTERSERVE FACILITIES MANAGEMENT LTD,4000216360,276878.93
Department for Education,NATIONAL COLLEGE FOR TEACHING AND LEADERSHIP AGENCY,15/09/2015,Grants,Delivery Directorate,Grants to educational establishments,RUNSHAW COLLEGE,4000216362,50000.00
Department for Education,NATIONAL COLLEGE FOR TEACHING AND LEADERSHIP AGENCY,15/09/2015,Grants,Delivery Directorate,Grants to educational establishments,BISHOP RAWSTORNE CE ACADEMY,4000216365,40000.00
Department for Education,NATIONAL COLLEGE FOR TEACHING AND LEADERSHIP AGENCY,15/09/2015,Grants,Delivery Directorate,Grants to educational establishments,ORMISTON VENTURE ACADEMY,4000216368,50000.00
Department for Education,NATIONAL COLLEGE FOR TEACHING AND LEADERSHIP AGENCY,15/09/2015,Grants,Delivery Directorate,Grants to educational establishments,ORMISTON VENTURE ACADEMY,4000216368,6000.00
Department for Education,NATIONAL COLLEGE FOR TEACHING AND LEADERSHIP AGENCY,15/09/2015,Grants,Delivery Directorate,Grants to educational establishments,ST BEDES PRIMARY CATHOLIC VOLUNTARY ACADEMY,4000216371,50000.00
Department for Education,NATIONAL COLLEGE FOR TEACHING AND LEADERSHIP AGENCY,15/09/2015,Grants,Delivery Directorate,Grants to educational establishments,ST BEDES PRIMARY CATHOLIC VOLUNTARY ACADEMY,4000216371,2200.00
Department for Education,DEPARTMENT FOR EDUCATION,15/09/2015,Grants,Families Group,Grants to third sector organisations / not for profit organisations and other businesses,RESOLUTIONS CONSULTANCY PTY LTD,4000216375,177960.96
Department for Education,NATIONAL COLLEGE FOR TEACHING AND LEADERSHIP AGENCY,15/09/2015,Grants,Delivery Directorate,Grants to educational establishments,MAIDEN ERLEGH SCHOOL,4000216378,40000.00
Department for Education,NATIONAL COLLEGE FOR TEACHING AND LEADERSHIP AGENCY,15/09/2015,Grants,Delivery Directorate,Grants to educational establishments,MAIDEN ERLEGH SCHOOL,4000216378,6000.00
Department for Education,DEPARTMENT FOR EDUCATION,15/09/2015,Grants,Adoption and Children in Care Division,Grants to third sector organisations / not for profit organisations and other businesses,CONSORTIUM OF VOLUNTARY ADOPTION AGENCIES UK LTD,4000216381,447694.00
Department for Education,DEPARTMENT FOR EDUCATION,15/09/2015,Grants,Adoption and Children in Care Division,Grants to third sector organisations / not for profit organisations and other businesses,THE SHARE FOUNDATION 3RD PARTY TRUST,4000216382,63200.00
Department for Education,DEPARTMENT FOR EDUCATION,15/09/2015,Grants,Families Group,Grants to third sector organisations / not for profit organisations and other businesses,ACTION FOR CHILDREN,4000216384,100000.00
Department for Education,NATIONAL COLLEGE FOR TEACHING AND LEADERSHIP AGENCY,15/09/2015,Grants,Delivery Directorate,Grants to educational establishments,LAWRENCE SHERIFF SCHOOL,4000216391,40000.00
Department for Education,NATIONAL COLLEGE FOR TEACHING AND LEADERSHIP AGENCY,15/09/2015,Grants,Delivery Directorate,Grants to educational establishments,GRASSLOT INFANT SCHOOL,4000216395,50000.00
Department for Education,NATIONAL COLLEGE FOR TEACHING AND LEADERSHIP AGENCY,15/09/2015,Grants,Delivery Directorate,Grants to educational establishments,GRASSLOT INFANT SCHOOL,4000216395,6000.00
Department for Education,NATIONAL COLLEGE FOR TEACHING AND LEADERSHIP AGENCY,15/09/2015,Grants,Delivery Directorate,Grants to educational establishments,SANDGATE PRIMARY SCHOOL,4000216411,40000.00
Department for Education,NATIONAL COLLEGE FOR TEACHING AND LEADERSHIP AGENCY,15/09/2015,Grants,Delivery Directorate,Grants to educational establishments,SANDGATE PRIMARY SCHOOL,4000216411,6000.00
Department for Education,DEPARTMENT FOR EDUCATION,14/09/2015,Professional Services Consultancy and Contingent Labour,Information Technology Group,Costs related to temporary workers,METHODS CONSULTING LTD,4000216246,13200.00
Department for Education,DEPARTMENT FOR EDUCATION,16/09/2015,Grants,Assessment and Curriculum and General Qualifications Group,Grants to third sector organisations / not for profit organisations and other businesses,ASSOCIATION FOR LANGUAGE LEARNING,4000216416,66420.59
Department for Education,DEPARTMENT FOR EDUCATION,02/09/2015,ICT,Information Technology Group,ICT Software,LOCKHEED MARTIN,4000215534,259892.75
Department for Education,DEPARTMENT FOR EDUCATION,16/09/2015,Professional Services Consultancy and Contingent Labour,Information Technology Group,Costs related to temporary workers,METHODS CONSULTING LTD,4000216419,12618.60
Department for Education,DEPARTMENT FOR EDUCATION,16/09/2015,Professional Services Consultancy and Contingent Labour,Information Technology Group,Costs related to temporary workers,METHODS CONSULTING LTD,4000216419,15840.00
Department for Education,DEPARTMENT FOR EDUCATION,29/09/2015,Professional Services Consultancy and Contingent Labour,Information Technology Group,Costs related to temporary workers,METHODS CONSULTING LTD,4000217008,17700.00
Department for Education,DEPARTMENT FOR EDUCATION,16/09/2015,Programme costs,Assessment and Curriculum and General Qualifications Group,Funding to deliver policies (excluding consultancy) paid to third parties via a service delivery contract,THE POETRY ARCHIVE,4000216425,30000.00
Department for Education,DEPARTMENT FOR EDUCATION,16/09/2015,Programme costs,Assessment and Curriculum and General Qualifications Group,Funding to deliver policies (excluding consultancy) paid to third parties via a service delivery contract,MYSCIENCE CO LTD,4000216433,116815.57
Department for Education,NATIONAL COLLEGE FOR TEACHING AND LEADERSHIP AGENCY,14/09/2015,Communications,Delivery Directorate,"Publicity, advertising, media advertising campaigns (excluding recruitment adverts)",INFERNO LTD,4000216280,4982.75
Department for Education,DEPARTMENT FOR EDUCATION,16/09/2015,Grants,Assessment and Curriculum and General Qualifications Group,Grants to educational establishments,HARRIS FEDERATION OF SOUTH LONDON SCHOOLS,4000216438,26060.00
Department for Education,NATIONAL COLLEGE FOR TEACHING AND LEADERSHIP AGENCY,16/09/2015,Programme costs,Operations Directorate,Funding to deliver policies (excluding consultancy) paid to third parties via a service delivery contract,TEXUNA TECHNOLOGIES,4000216439,26146.20
Department for Education,DEPARTMENT FOR EDUCATION,16/09/2015,Facilities,Property Asset Management Group,"Building maintenance and repair, including repainting, replacing flooring, etc.",INTERSERVE FACILITIES MANAGEMENT LTD,4000216444,61758.93
Department for Education,DEPARTMENT FOR EDUCATION,17/09/2015,Programme costs,Teachers and Teaching Group,Monthly contract payment to deliver the administration of the Teachers' Pension Scheme,CAPITA LIFE & PENSIONS SERVICES LTD,4000216447,1295193.45
Department for Education,STANDARDS AND TESTING AGENCY,17/09/2015,Office Solutions,Test Operations Division,"Courier related activity to move examination papers and scripts etc. from one location to another, for example from despatch points to schools",PARCELFORCE WORLDWIDE,4000216448,53056.50
Department for Education,DEPARTMENT FOR EDUCATION,04/09/2015,Professional Services Other,Strategic Analysis and Research Group,Research and evaluation activities,Payment to individual,4000215812,36350.00
Department for Education,DEPARTMENT FOR EDUCATION,08/09/2015,Professional Services Other,Strategic Analysis and Research Group,Research and evaluation activities,NATIONAL CENTRE FOR SOCIAL RESEARCH,4000215913,70000.00
Department for Education,DEPARTMENT FOR EDUCATION,17/09/2015,Programme costs,Assessment and Curriculum and General Qualifications Group,Funding to deliver policies (excluding consultancy) paid to third parties via a service delivery contract,MATHEMATICS IN EDUCATION & INDUSTRY,4000216527,259500.00
Department for Education,DEPARTMENT FOR EDUCATION,14/09/2015,ICT,Information Technology Group,ICT Software,LIBERATA UK LTD,4000216255,80639.64
Department for Education,DEPARTMENT FOR EDUCATION,17/09/2015,Professional Services Other,Assessment and Curriculum and General Qualifications Group,Research and evaluation activities,SHEFFIELD HALLAM UNIVERSITY,4000216484,41735.00
Department for Education,DEPARTMENT FOR EDUCATION,17/09/2015,Professional Services Other,Families Group,Research and evaluation activities,UNIVERSITY OF OXFORD,4000216489,49815.00
Department for Education,NATIONAL COLLEGE FOR TEACHING AND LEADERSHIP AGENCY,18/09/2015,Programme costs,Research and Development Directorate,Funding to deliver policies (excluding consultancy) paid to third parties via a service delivery contract,CFBT EDUCATION TRUST,4000216582,31700.00
Department for Education,DEPARTMENT FOR EDUCATION,29/09/2015,Professional Services Other,Closing the Gap Group,Research and evaluation activities,NFER TRADING LIMITED INV T,4000217034,35591.00
Department for Education,DEPARTMENT FOR EDUCATION,14/09/2015,ICT,Information Technology Group,ICT Software,LOCKHEED MARTIN,4000216288,41874.50
Department for Education,DEPARTMENT FOR EDUCATION,18/09/2015,Programme costs,Assessment and Curriculum and General Qualifications Group,Funding to deliver policies (excluding consultancy) paid to third parties via a service delivery contract,TRIBAL EDUCATION LIMITED,4000216593,149402.40
Department for Education,DEPARTMENT FOR EDUCATION,21/09/2015,Grants,Closing the Gap Group,Grants to third sector organisations / not for profit organisations and other businesses,KSA EDUCATION & TRAINING,4000216607,34401.10
Department for Education,DEPARTMENT FOR EDUCATION,21/09/2015,Grants,Closing the Gap Group,Grants to third sector organisations / not for profit organisations and other businesses,CHALLENGER TROOP,4000216608,67836.29
Department for Education,DEPARTMENT FOR EDUCATION,21/09/2015,Grants,Academies Delivery Group,Grants to educational establishments,HEIGHINGTON MILLFIELD PRIMARY ACADEMY,4000216616,70000.00
Department for Education,DEPARTMENT FOR EDUCATION,21/09/2015,Grants,Academies Delivery Group,Grants to third sector organisations / not for profit organisations and other businesses,TBG EDUCATION,4000216617,38978.03
Department for Education,DEPARTMENT FOR EDUCATION,21/09/2015,Grants,Academies Delivery Group,Grants to educational establishments,WEST NORFOLK ACADEMY TRUST,4000216619,80000.00
Department for Education,DEPARTMENT FOR EDUCATION,21/09/2015,Programme costs,Closing the Gap Group,Funding to deliver policies (excluding consultancy) paid to third parties via a service delivery contract,SOIL ASSOCIATION LTD,4000216625,43480.00
Department for Education,DEPARTMENT FOR EDUCATION,21/09/2015,Grants,Academies Delivery Group,Grants to educational establishments,REACH 2 ESSEX ACADEMY TRUST,4000216634,70000.00
Department for Education,DEPARTMENT FOR EDUCATION,21/09/2015,Grants,Families Group,Grants to third sector organisations / not for profit organisations and other businesses,SAFE FAMILIES FOR CHILDREN,4000216638,114213.80
Department for Education,DEPARTMENT FOR EDUCATION,21/09/2015,Grants,Academies Delivery Group,Grants to educational establishments,WOODROW FIRST SCHOOL,4000216667,25000.00
Department for Education,DEPARTMENT FOR EDUCATION,21/09/2015,Grants,Academies Delivery Group,Grants to educational establishments,CHELSFIELD PRIMARY SCHOOL,4000216670,25000.00
Department for Education,DEPARTMENT FOR EDUCATION,21/09/2015,Grants,Academies Delivery Group,Grants to educational establishments,HAILEYBURY ACADEMY TRUST,4000216671,55000.00
Department for Education,DEPARTMENT FOR EDUCATION,21/09/2015,Grants,Academies Delivery Group,Grants to educational establishments,ST WILFREDS RC COLLEGE,4000216672,25000.00
Department for Education,DEPARTMENT FOR EDUCATION,22/09/2015,Programme costs,Adoption and Children in Care Division,Funding to deliver policies (excluding consultancy) paid to third parties via a service delivery contract,ATKINS LTD,4000216675,36576.54
Department for Education,NATIONAL COLLEGE FOR TEACHING AND LEADERSHIP AGENCY,22/09/2015,Grants,Delivery Directorate,Grants to educational establishments,OLDWAY PRIMARY SCHOOL,4000216676,40000.00
Department for Education,DEPARTMENT FOR EDUCATION,22/09/2015,Programme costs,Teachers and Teaching Group,Funding to deliver policies (excluding consultancy) paid to third parties via a service delivery contract,GOVERNMENT ACTUARYS DEPARTMENT GAD,4000216683,33703.66
Department for Education,NATIONAL COLLEGE FOR TEACHING AND LEADERSHIP AGENCY,22/09/2015,Grants,Delivery Directorate,Grants to educational establishments,HAYBRIDGE HIGH SCHOOL & SIXTH FORM TS ACCOUNT,4000216684,38334.00
Department for Education,NATIONAL COLLEGE FOR TEACHING AND LEADERSHIP AGENCY,22/09/2015,Grants,Delivery Directorate,Grants to educational establishments,HAYBRIDGE HIGH SCHOOL & SIXTH FORM TS ACCOUNT,4000216684,6000.00
Department for Education,NATIONAL COLLEGE FOR TEACHING AND LEADERSHIP AGENCY,22/09/2015,ICT,Operations Directorate,Online data management,HESA SERVICES LTD,4000216688,26190.00
Department for Education,DEPARTMENT FOR EDUCATION,22/09/2015,Programme costs,"Childcare, Special Educational Needs and Children's Strategy Group",Funding to deliver policies (excluding consultancy) paid to third parties via a service delivery contract,MOTT MACDONALD LTD,4000216692,179978.40
Department for Education,DEPARTMENT FOR EDUCATION,22/09/2015,Programme costs,Assessment and Curriculum and General Qualifications Group,Funding to deliver policies (excluding consultancy) paid to third parties via a service delivery contract,CFBT EDUCATION TRUST,4000216695,216163.20
Department for Education,NATIONAL COLLEGE FOR TEACHING AND LEADERSHIP AGENCY,22/09/2015,Grants,Delivery Directorate,Grants to educational establishments,CORSHAM PRIMARY SCHOOL,4000216699,50000.00
Department for Education,NATIONAL COLLEGE FOR TEACHING AND LEADERSHIP AGENCY,22/09/2015,Grants,Delivery Directorate,Grants to educational establishments,CORSHAM PRIMARY SCHOOL,4000216699,6000.00
Department for Education,NATIONAL COLLEGE FOR TEACHING AND LEADERSHIP AGENCY,22/09/2015,Grants,Delivery Directorate,Grants to educational establishments,CANONS HIGH SCHOOL,4000216700,50000.00
Department for Education,DEPARTMENT FOR EDUCATION,22/09/2015,Programme costs,"Childcare, Special Educational Needs and Children's Strategy Group",Funding to deliver policies (excluding consultancy) paid to third parties via a service delivery contract,CONTACT A FAMILY,4000216706,120762.91
Department for Education,NATIONAL COLLEGE FOR TEACHING AND LEADERSHIP AGENCY,22/09/2015,Grants,Delivery Directorate,Grants to educational establishments,CHURCHILL COMMUNITY COLLEGE,4000216714,60000.00
Department for Education,NATIONAL COLLEGE FOR TEACHING AND LEADERSHIP AGENCY,22/09/2015,Grants,Delivery Directorate,Grants to educational establishments,CHURCHILL COMMUNITY COLLEGE,4000216714,6000.00
Department for Education,NATIONAL COLLEGE FOR TEACHING AND LEADERSHIP AGENCY,22/09/2015,Grants,Delivery Directorate,Grants to educational establishments,TREGONWELL ACADEMY,4000216725,50000.00
Department for Education,NATIONAL COLLEGE FOR TEACHING AND LEADERSHIP AGENCY,22/09/2015,Grants,Delivery Directorate,Grants to educational establishments,TREGONWELL ACADEMY,4000216725,6000.00
Department for Education,NATIONAL COLLEGE FOR TEACHING AND LEADERSHIP AGENCY,22/09/2015,Grants,Delivery Directorate,Grants to educational establishments,ST JOHN BOSCO ARTS COLLEGE,4000216726,40000.00
Department for Education,NATIONAL COLLEGE FOR TEACHING AND LEADERSHIP AGENCY,22/09/2015,Grants,Delivery Directorate,Grants to educational establishments,ST JOHN BOSCO ARTS COLLEGE,4000216726,6000.00
Department for Education,DEPARTMENT FOR EDUCATION,22/09/2015,Grants,Academies Delivery Group,Grants to educational establishments,BATLEY GIRLS HIGH SCHOOL,4000216732,80000.00
Department for Education,DEPARTMENT FOR EDUCATION,22/09/2015,Energy and Fuels,Property Asset Management Group,Electricity supply,EDF ENERGY LTD,4000216733,117524.41
Department for Education,DEPARTMENT FOR EDUCATION,22/09/2015,Grants,Academies Delivery Group,Grants to educational establishments,OUTWOOD GRANGE ACADEMIES TRUST,4000216734,150000.00
Department for Education,DEPARTMENT FOR EDUCATION,22/09/2015,Facilities,Property Asset Management Group,Business rates,GVA GRIMLEY LTD,4000216738,598089.00
Department for Education,DEPARTMENT FOR EDUCATION,22/09/2015,Facilities,Property Asset Management Group,Business rates,GVA GRIMLEY LTD,4000216738,3954.00
Department for Education,NATIONAL COLLEGE FOR TEACHING AND LEADERSHIP AGENCY,22/09/2015,Grants,Delivery Directorate,Grants to educational establishments,ASH GROVE ACADEMY,4000216743,50000.00
Department for Education,NATIONAL COLLEGE FOR TEACHING AND LEADERSHIP AGENCY,22/09/2015,Grants,Delivery Directorate,Grants to educational establishments,ASH GROVE ACADEMY,4000216743,6000.00
Department for Education,NATIONAL COLLEGE FOR TEACHING AND LEADERSHIP AGENCY,22/09/2015,Grants,Delivery Directorate,Grants to educational establishments,OUR LADYS CATHOLIC HIGH SCHOOL,4000216747,50000.00
Department for Education,NATIONAL COLLEGE FOR TEACHING AND LEADERSHIP AGENCY,22/09/2015,Grants,Delivery Directorate,Grants to educational establishments,OUR LADYS CATHOLIC HIGH SCHOOL,4000216747,6000.00
Department for Education,NATIONAL COLLEGE FOR TEACHING AND LEADERSHIP AGENCY,22/09/2015,Grants,Delivery Directorate,Grants to educational establishments,WILDERN SCHOOL TS ACC,4000216749,40000.00
Department for Education,NATIONAL COLLEGE FOR TEACHING AND LEADERSHIP AGENCY,22/09/2015,Grants,Delivery Directorate,Grants to educational establishments,WILDERN SCHOOL TS ACC,4000216749,6000.00
Department for Education,NATIONAL COLLEGE FOR TEACHING AND LEADERSHIP AGENCY,22/09/2015,Grants,Delivery Directorate,Grants to third sector organisations / not for profit organisations and other businesses,CABOT LEARNING FEDERATION,4000216752,5000.00
Department for Education,NATIONAL COLLEGE FOR TEACHING AND LEADERSHIP AGENCY,22/09/2015,Grants,Delivery Directorate,Grants to third sector organisations / not for profit organisations and other businesses,CABOT LEARNING FEDERATION,4000216752,40000.00
Department for Education,NATIONAL COLLEGE FOR TEACHING AND LEADERSHIP AGENCY,22/09/2015,Grants,Delivery Directorate,Grants to educational establishments,ST PATRICKS RC HIGH SCHOOL,4000216755,40000.00
Department for Education,NATIONAL COLLEGE FOR TEACHING AND LEADERSHIP AGENCY,22/09/2015,Grants,Delivery Directorate,Grants to educational establishments,ST PATRICKS RC HIGH SCHOOL,4000216755,6000.00
Department for Education,NATIONAL COLLEGE FOR TEACHING AND LEADERSHIP AGENCY,22/09/2015,Grants,Delivery Directorate,Grants to educational establishments,WOODFIELD SCHOOL,4000216757,40000.00
Department for Education,NATIONAL COLLEGE FOR TEACHING AND LEADERSHIP AGENCY,22/09/2015,Grants,Delivery Directorate,Grants to educational establishments,THE STREETLY ACADEMY,4000216765,50000.00
Department for Education,NATIONAL COLLEGE FOR TEACHING AND LEADERSHIP AGENCY,22/09/2015,Grants,Delivery Directorate,Grants to educational establishments,THE STREETLY ACADEMY,4000216765,6000.00
Department for Education,DEPARTMENT FOR EDUCATION,22/09/2015,Programme costs,Children's Services and Departmental Strategy Safeguarding Group,Funding to deliver policies (excluding consultancy) paid to third parties via a service delivery contract,ESSEX COUNTY COUNCIL,4000216767,142800.00
Department for Education,NATIONAL COLLEGE FOR TEACHING AND LEADERSHIP AGENCY,22/09/2015,Grants,Delivery Directorate,Grants to educational establishments,KING EDWARD VI HIGH SCHOOL FOR GIRLS,4000216769,40000.00
Department for Education,NATIONAL COLLEGE FOR TEACHING AND LEADERSHIP AGENCY,22/09/2015,Grants,Delivery Directorate,Grants to educational establishments,BOURNE WESTFIELD PRIMARY ACADEMY,4000216771,60000.00
Department for Education,NATIONAL COLLEGE FOR TEACHING AND LEADERSHIP AGENCY,22/09/2015,Grants,Delivery Directorate,Grants to educational establishments,BOURNE WESTFIELD PRIMARY ACADEMY,4000216771,6000.00
Department for Education,DEPARTMENT FOR EDUCATION,22/09/2015,Grants,Adoption and Children in Care Division,Grants to third sector organisations / not for profit organisations and other businesses,THE SHARE FOUNDATION 3RD PARTY TRUST,4000216773,74800.00
Department for Education,NATIONAL COLLEGE FOR TEACHING AND LEADERSHIP AGENCY,22/09/2015,Grants,Delivery Directorate,Grants to educational establishments,ST FRANCIS XAVIER CATHOLIC PRIMARY SCHOOL,4000216774,50000.00
Department for Education,NATIONAL COLLEGE FOR TEACHING AND LEADERSHIP AGENCY,22/09/2015,Grants,Delivery Directorate,Grants to educational establishments,ST FRANCIS XAVIER CATHOLIC PRIMARY SCHOOL,4000216774,6000.00
Department for Education,DEPARTMENT FOR EDUCATION,22/09/2015,Programme costs,Children's Services and Departmental Strategy Safeguarding Group,Funding to deliver policies (excluding consultancy) paid to third parties via a service delivery contract,KPMG LLP,4000216779,278355.32
Department for Education,NATIONAL COLLEGE FOR TEACHING AND LEADERSHIP AGENCY,22/09/2015,Grants,Delivery Directorate,Grants to educational establishments,WAVERLEY SCHOOL,4000216780,50000.00
Department for Education,NATIONAL COLLEGE FOR TEACHING AND LEADERSHIP AGENCY,22/09/2015,Grants,Delivery Directorate,Grants to educational establishments,WAVERLEY SCHOOL,4000216780,6000.00
Department for Education,DEPARTMENT FOR EDUCATION,22/09/2015,Grants,"Childcare, Special Educational Needs and Children's Strategy Group",Grants to third sector organisations / not for profit organisations and other businesses,FAMILY LIVES,4000216781,37500.00
Department for Education,DEPARTMENT FOR EDUCATION,22/09/2015,Grants,Free School Group,Grants to third sector organisations / not for profit organisations and other businesses,North East Futures UTC,4000216782,90000.00
Department for Education,DEPARTMENT FOR EDUCATION,22/09/2015,Grants,Academies Delivery Group,Grants to educational establishments,THE PRIMARY ACADEMIES TRUST,4000216783,70000.00
Department for Education,DEPARTMENT FOR EDUCATION,23/09/2015,Grants,Families Group,Grants to local authorities outside aggregate external funding or aggregate exchequer grant,CHESHIRE WEST & CHESTER COUNCIL,4000216786,45000.00
Department for Education,DEPARTMENT FOR EDUCATION,23/09/2015,Grants,Families Group,Grants to local authorities outside aggregate external funding or aggregate exchequer grant,CHESHIRE EAST COUNCIL,4000216787,199134.00
Department for Education,DEPARTMENT FOR EDUCATION,23/09/2015,Grants,Families Group,Grants to local authorities outside aggregate external funding or aggregate exchequer grant,STAFFORDSHIRE COUNCIL,4000216788,115000.00
Department for Education,DEPARTMENT FOR EDUCATION,23/09/2015,Grants,Families Group,Grants to local authorities outside aggregate external funding or aggregate exchequer grant,STOKE ON TRENT CITY COUNCIL,4000216789,147000.00
Department for Education,DEPARTMENT FOR EDUCATION,23/09/2015,Grants,Families Group,Grants to local authorities outside aggregate external funding or aggregate exchequer grant,WILTSHIRE COUNCIL,4000216790,35000.00
Department for Education,DEPARTMENT FOR EDUCATION,23/09/2015,Grants,Closing the Gap Group,Grants to third sector organisations / not for profit organisations and other businesses,TRAINING 2000,4000216791,25099.00
Department for Education,DEPARTMENT FOR EDUCATION,23/09/2015,Grants,Families Group,Grants to local authorities outside aggregate external funding or aggregate exchequer grant,TRAFFORD MB COUNCIL,4000216793,70000.00
Department for Education,DEPARTMENT FOR EDUCATION,23/09/2015,Grants,Closing the Gap Group,Grants to third sector organisations / not for profit organisations and other businesses,ARMY CADET FORCE ASSOCIATION,4000216794,28371.36
Department for Education,DEPARTMENT FOR EDUCATION,23/09/2015,Grants,Families Group,Grants to local authorities outside aggregate external funding or aggregate exchequer grant,THE ROYAL BOROUGH OF WINDSOR & MAIDENHEAD,4000216796,109000.00
Department for Education,DEPARTMENT FOR EDUCATION,23/09/2015,Grants,Families Group,Grants to local authorities outside aggregate external funding or aggregate exchequer grant,READING BOROUGH COUNCIL,4000216797,60000.00
Department for Education,DEPARTMENT FOR EDUCATION,23/09/2015,Grants,Families Group,Grants to local authorities outside aggregate external funding or aggregate exchequer grant,CAMBRIDGESHIRE COUNTY COUNCIL,4000216798,152343.00
Department for Education,DEPARTMENT FOR EDUCATION,23/09/2015,Grants,Families Group,Grants to local authorities outside aggregate external funding or aggregate exchequer grant,WOLVERHAMPTON CITY COUNCIL,4000216799,35000.00
Department for Education,DEPARTMENT FOR EDUCATION,23/09/2015,Grants,Families Group,Grants to local authorities outside aggregate external funding or aggregate exchequer grant,LEICESTER CITY COUNCIL,4000216801,45000.00
Department for Education,DEPARTMENT FOR EDUCATION,23/09/2015,Grants,Families Group,Grants to local authorities outside aggregate external funding or aggregate exchequer grant,PLYMOUTH CITY COUNCIL,4000216806,113183.00
Department for Education,DEPARTMENT FOR EDUCATION,23/09/2015,Grants,Families Group,Grants to local authorities outside aggregate external funding or aggregate exchequer grant,TORBAY COUNCIL,4000216807,250000.00
Department for Education,DEPARTMENT FOR EDUCATION,23/09/2015,Grants,Families Group,Grants to local authorities outside aggregate external funding or aggregate exchequer grant,KENT COUNTY COUNCIL,4000216808,162000.00
Department for Education,DEPARTMENT FOR EDUCATION,23/09/2015,Grants,Families Group,Grants to local authorities outside aggregate external funding or aggregate exchequer grant,NOTTINGHAM CITY COUNCIL,4000216809,45000.00
Department for Education,DEPARTMENT FOR EDUCATION,23/09/2015,Grants,Families Group,Grants to local authorities outside aggregate external funding or aggregate exchequer grant,COVENTRY CITY COUNCIL,4000216810,162000.00
Department for Education,DEPARTMENT FOR EDUCATION,23/09/2015,Grants,Families Group,Grants to local authorities outside aggregate external funding or aggregate exchequer grant,GLOUCESTERSHIRE COUNTY COUNCIL,4000216813,762000.00
Department for Education,DEPARTMENT FOR EDUCATION,23/09/2015,Grants,Families Group,Grants to local authorities outside aggregate external funding or aggregate exchequer grant,NORTHAMPTONSHIRE COUNTY COUNCIL,4000216814,60000.00
Department for Education,DEPARTMENT FOR EDUCATION,23/09/2015,Grants,Families Group,Grants to local authorities outside aggregate external funding or aggregate exchequer grant,OXFORDSHIRE COUNTY COUNCIL,4000216815,117650.00
Department for Education,DEPARTMENT FOR EDUCATION,23/09/2015,Grants,Families Group,Grants to local authorities outside aggregate external funding or aggregate exchequer grant,SOMERSET COUNTY COUNCIL,4000216816,35000.00
Department for Education,DEPARTMENT FOR EDUCATION,23/09/2015,Grants,Families Group,Grants to local authorities outside aggregate external funding or aggregate exchequer grant,NORFOLK COUNTY COUNCIL,4000216817,35000.00
Department for Education,DEPARTMENT FOR EDUCATION,16/09/2015,ICT,Information Technology Group,ICT Software,PROACT IT UK LTD,4000216418,68123.08
Department for Education,DEPARTMENT FOR EDUCATION,18/09/2015,ICT,Information Technology Group,ICT Software,LOCKHEED MARTIN,4000216548,107233.69
Department for Education,DEPARTMENT FOR EDUCATION,23/09/2015,Grants,Closing the Gap Group,Grants to third sector organisations / not for profit organisations and other businesses,COMMANDO JOES,4000216824,37394.23
Department for Education,DEPARTMENT FOR EDUCATION,29/09/2015,Professional Services Consultancy and Contingent Labour,Information Technology Group,Costs related to temporary workers,METHODS CONSULTING LTD,4000217008,5940.00
Department for Education,DEPARTMENT FOR EDUCATION,23/09/2015,Grants,Families Group,Grants to local authorities outside aggregate external funding or aggregate exchequer grant,SURREY COUNTY COUNCIL,4000216827,179250.00
Department for Education,DEPARTMENT FOR EDUCATION,23/09/2015,Grants,Families Group,Grants to local authorities outside aggregate external funding or aggregate exchequer grant,WEST SUSSEX COUNTY COUNCIL,4000216828,45000.00
Department for Education,DEPARTMENT FOR EDUCATION,23/09/2015,Grants,Families Group,Grants to local authorities outside aggregate external funding or aggregate exchequer grant,THE ROYAL BOROUGH OF KENSINGTON & CHELSEA COUNCIL,4000216829,114675.00
Department for Education,DEPARTMENT FOR EDUCATION,23/09/2015,Grants,Families Group,Grants to local authorities outside aggregate external funding or aggregate exchequer grant,LONDON BOROUGH OF SOUTHWARK COUNCIL,4000216830,152877.00
Department for Education,DEPARTMENT FOR EDUCATION,23/09/2015,Grants,Families Group,Grants to local authorities outside aggregate external funding or aggregate exchequer grant,LONDON BOROUGH OF HAMMERSMITH & FULHAM COUNCIL,4000216831,171925.00
Department for Education,DEPARTMENT FOR EDUCATION,23/09/2015,Grants,Families Group,Grants to local authorities outside aggregate external funding or aggregate exchequer grant,LONDON BOROUGH OF ISLINGTON COUNCIL,4000216834,697243.00
Department for Education,DEPARTMENT FOR EDUCATION,23/09/2015,Grants,Families Group,Grants to local authorities outside aggregate external funding or aggregate exchequer grant,LONDON BOROUGH OF TOWER HAMLETS COUNCIL,4000216835,69457.00
Department for Education,DEPARTMENT FOR EDUCATION,23/09/2015,Grants,Families Group,Grants to local authorities outside aggregate external funding or aggregate exchequer grant,LEEDS CITY COUNCIL,4000216837,1216633.00
Department for Education,DEPARTMENT FOR EDUCATION,29/09/2015,Professional Services Consultancy and Contingent Labour,Information Technology Group,Costs related to temporary workers,METHODS CONSULTING LTD,4000217008,8304.00
Department for Education,DEPARTMENT FOR EDUCATION,16/09/2015,Professional Services Consultancy and Contingent Labour,Information Technology Group,Costs related to temporary workers,PRO CEDURE LTD,4000216414,28800.00
Department for Education,DEPARTMENT FOR EDUCATION,23/09/2015,Grants,Families Group,Grants to local authorities outside aggregate external funding or aggregate exchequer grant,SHEFFIELD CITY COUNCIL,4000216840,272500.00
Department for Education,DEPARTMENT FOR EDUCATION,23/09/2015,Grants,Families Group,Grants to local authorities outside aggregate external funding or aggregate exchequer grant,CITY OF WESTMINSTER,4000216841,143275.00
Department for Education,DEPARTMENT FOR EDUCATION,23/09/2015,Grants,Families Group,Grants to local authorities outside aggregate external funding or aggregate exchequer grant,LONDON BOROUGH OF EALING COUNCIL,4000216843,606500.00
Department for Education,DEPARTMENT FOR EDUCATION,23/09/2015,Grants,Families Group,Grants to local authorities outside aggregate external funding or aggregate exchequer grant,LONDON BOROUGH OF ENFIELD COUNCIL,4000216844,491250.00
Department for Education,DEPARTMENT FOR EDUCATION,23/09/2015,Grants,Families Group,Grants to local authorities outside aggregate external funding or aggregate exchequer grant,LONDON BOROUGH OF HARROW COUNCIL,4000216845,118052.00
Department for Education,DEPARTMENT FOR EDUCATION,23/09/2015,Grants,Families Group,Grants to local authorities outside aggregate external funding or aggregate exchequer grant,SUFFOLK COUNTY COUNCIL,4000216846,207872.00
Department for Education,DEPARTMENT FOR EDUCATION,23/09/2015,Grants,Families Group,Grants to local authorities outside aggregate external funding or aggregate exchequer grant,LONDON BOROUGH OF WALTHAM FOREST COUNCIL,4000216854,68125.00
Department for Education,DEPARTMENT FOR EDUCATION,23/09/2015,Grants,Families Group,Grants to local authorities outside aggregate external funding or aggregate exchequer grant,SEFTON COUNCIL,4000216856,179000.00
Department for Education,DEPARTMENT FOR EDUCATION,23/09/2015,Grants,Families Group,Grants to local authorities outside aggregate external funding or aggregate exchequer grant,MANCHESTER CITY COUNCIL,4000216863,77500.00
Department for Education,DEPARTMENT FOR EDUCATION,23/09/2015,Grants,Families Group,Grants to local authorities outside aggregate external funding or aggregate exchequer grant,SALFORD CITY COUNCIL,4000216864,35000.00
Department for Education,DEPARTMENT FOR EDUCATION,23/09/2015,Grants,Families Group,Grants to local authorities outside aggregate external funding or aggregate exchequer grant,STOCKPORT MBC,4000216865,475448.00
Department for Education,DEPARTMENT FOR EDUCATION,23/09/2015,Grants,Families Group,Grants to local authorities outside aggregate external funding or aggregate exchequer grant,WIGAN MBC,4000216866,413895.00
Department for Education,DEPARTMENT FOR EDUCATION,23/09/2015,Grants,Families Group,Grants to local authorities outside aggregate external funding or aggregate exchequer grant,CALDERDALE MBC,4000216867,395067.00
Department for Education,DEPARTMENT FOR EDUCATION,23/09/2015,Grants,Families Group,Grants to local authorities outside aggregate external funding or aggregate exchequer grant,NEWCASTLE CITY COUNCIL,4000216874,395005.00
Department for Education,DEPARTMENT FOR EDUCATION,23/09/2015,Grants,Families Group,Grants to third sector organisations / not for profit organisations and other businesses,THE FOSTERING NETWORK,4000216875,28562.19
Department for Education,DEPARTMENT FOR EDUCATION,02/09/2015,ICT,Property Asset Management Group,Partial payment for IT hardware / consumables,MACE LTD,4000215495,342792.31
Department for Education,DEPARTMENT FOR EDUCATION,02/09/2015,Facilities,Property Asset Management Group,Construction costs relating to the Old Admiralty Building project.,BAM CONSTRUCTION LTD,4000215594,76204.80
Department for Education,DEPARTMENT FOR EDUCATION,08/09/2015,Facilities,Property Asset Management Group,Construction costs relating to the Old Admiralty Building project.,BAM CONSTRUCTION LTD,4000215997,74590.80
Department for Education,DEPARTMENT FOR EDUCATION,24/09/2015,ICT,Information Technology Group,Partial payment for IT hardware / consumables,BT GLOBAL SERVICES,4000216919,142800.00
Department for Education,DEPARTMENT FOR EDUCATION,23/09/2015,ICT,Children in Care Division,Telecoms facilities and services - mobiles and pagers,VODAFONE CORPORATE,4000216881,1036.38
Department for Education,DEPARTMENT FOR EDUCATION,23/09/2015,ICT,Strategic Analysis and Research and Policy Impact Group,Telecoms facilities and services - mobiles and pagers,VODAFONE CORPORATE,4000216881,100.80
Department for Education,DEPARTMENT FOR EDUCATION,23/09/2015,ICT,"Childcare, Special Educational Needs and Children's Strategy Group",Telecoms facilities and services - mobiles and pagers,VODAFONE CORPORATE,4000216881,219.95
Department for Education,DEPARTMENT FOR EDUCATION,23/09/2015,ICT,Strategic Analysis and Research and Policy Impact Group,Telecoms facilities and services - mobiles and pagers,VODAFONE CORPORATE,4000216881,158.70
Department for Education,DEPARTMENT FOR EDUCATION,23/09/2015,ICT,"Childcare, Special Educational Needs and Children's Strategy Group",Telecoms facilities and services - mobiles and pagers,VODAFONE CORPORATE,4000216881,486.41
Department for Education,DEPARTMENT FOR EDUCATION,23/09/2015,ICT,Children's Services and Departmental Strategy Directorate Support,Telecoms facilities and services - mobiles and pagers,VODAFONE CORPORATE,4000216881,16.80
Department for Education,DEPARTMENT FOR EDUCATION,23/09/2015,ICT,"Childcare, Special Educational Needs and Children's Strategy Group",Telecoms facilities and services - mobiles and pagers,VODAFONE CORPORATE,4000216881,14.40
Department for Education,DEPARTMENT FOR EDUCATION,23/09/2015,ICT,Families Group,Telecoms facilities and services - mobiles and pagers,VODAFONE CORPORATE,4000216881,16.80
Department for Education,DEPARTMENT FOR EDUCATION,23/09/2015,ICT,Information Technology Group,Telecoms facilities and services - mobiles and pagers,VODAFONE CORPORATE,4000216881,41.42
Department for Education,DEPARTMENT FOR EDUCATION,23/09/2015,ICT,Information Technology Group,Telecoms facilities and services - mobiles and pagers,VODAFONE CORPORATE,4000216881,339.84
Department for Education,DEPARTMENT FOR EDUCATION,23/09/2015,ICT,Information Technology Group,Telecoms facilities and services - mobiles and pagers,VODAFONE CORPORATE,4000216881,370.84
Department for Education,DEPARTMENT FOR EDUCATION,23/09/2015,ICT,Information Technology Group,Telecoms facilities and services - mobiles and pagers,VODAFONE CORPORATE,4000216881,5245.89
Department for Education,DEPARTMENT FOR EDUCATION,23/09/2015,ICT,Information Technology Group,Telecoms facilities and services - mobiles and pagers,VODAFONE CORPORATE,4000216881,15.32
Department for Education,DEPARTMENT FOR EDUCATION,23/09/2015,ICT,Information Technology Group,Telecoms facilities and services - mobiles and pagers,VODAFONE CORPORATE,4000216881,14.40
Department for Education,DEPARTMENT FOR EDUCATION,23/09/2015,ICT,Finance and Commercial Group,Telecoms facilities and services - mobiles and pagers,VODAFONE CORPORATE,4000216881,464.69
Department for Education,DEPARTMENT FOR EDUCATION,23/09/2015,ICT,Property Asset Management Group,Telecoms facilities and services - mobiles and pagers,VODAFONE CORPORATE,4000216881,697.76
Department for Education,DEPARTMENT FOR EDUCATION,23/09/2015,ICT,Strategic Analysis and Research Group,Telecoms facilities and services - mobiles and pagers,VODAFONE CORPORATE,4000216881,287.81
Department for Education,DEPARTMENT FOR EDUCATION,23/09/2015,ICT,Private Office,Telecoms facilities and services - mobiles and pagers,VODAFONE CORPORATE,4000216881,0.54
Department for Education,DEPARTMENT FOR EDUCATION,23/09/2015,ICT,"Strategy, Performance and Implementation Group",Telecoms facilities and services - mobiles and pagers,VODAFONE CORPORATE,4000216881,201.93
Department for Education,DEPARTMENT FOR EDUCATION,23/09/2015,ICT,Finance and Commercial Group,Telecoms facilities and services - mobiles and pagers,VODAFONE CORPORATE,4000216881,927.88
Department for Education,DEPARTMENT FOR EDUCATION,23/09/2015,ICT,Human Resources Group,Telecoms facilities and services - mobiles and pagers,VODAFONE CORPORATE,4000216881,565.21
Department for Education,DEPARTMENT FOR EDUCATION,23/09/2015,ICT,Information Technology Group,Telecoms facilities and services - mobiles and pagers,VODAFONE CORPORATE,4000216881,1457.93
Department for Education,DEPARTMENT FOR EDUCATION,23/09/2015,ICT,Information Technology Group,Telecoms facilities and services - mobiles and pagers,VODAFONE CORPORATE,4000216881,279.60
Department for Education,DEPARTMENT FOR EDUCATION,23/09/2015,ICT,Information Technology Group,Telecoms facilities and services - mobiles and pagers,VODAFONE CORPORATE,4000216881,43.20
Department for Education,DEPARTMENT FOR EDUCATION,23/09/2015,ICT,Information Technology Group,Telecoms facilities and services - mobiles and pagers,VODAFONE CORPORATE,4000216881,2080.51
Department for Education,DEPARTMENT FOR EDUCATION,23/09/2015,ICT,Information Technology Group,Telecoms facilities and services - mobiles and pagers,VODAFONE CORPORATE,4000216881,16.80
Department for Education,DEPARTMENT FOR EDUCATION,23/09/2015,ICT,Property Asset Management Group,Telecoms facilities and services - mobiles and pagers,VODAFONE CORPORATE,4000216881,25.84
Department for Education,DEPARTMENT FOR EDUCATION,23/09/2015,ICT,Property Asset Management Group,Telecoms facilities and services - mobiles and pagers,VODAFONE CORPORATE,4000216881,16.80
Department for Education,DEPARTMENT FOR EDUCATION,23/09/2015,ICT,Human Resources Group,Telecoms facilities and services - mobiles and pagers,VODAFONE CORPORATE,4000216881,158.52
Department for Education,DEPARTMENT FOR EDUCATION,23/09/2015,ICT,Free School Group,Telecoms facilities and services - mobiles and pagers,VODAFONE CORPORATE,4000216881,810.02
Department for Education,DEPARTMENT FOR EDUCATION,23/09/2015,ICT,Education Standards Directorate,Telecoms facilities and services - mobiles and pagers,VODAFONE CORPORATE,4000216881,89.92
Department for Education,DEPARTMENT FOR EDUCATION,23/09/2015,ICT,System Reform Group,Telecoms facilities and services - mobiles and pagers,VODAFONE CORPORATE,4000216881,559.87
Department for Education,DEPARTMENT FOR EDUCATION,23/09/2015,ICT,Education Funding Group,Telecoms facilities and services - mobiles and pagers,VODAFONE CORPORATE,4000216881,329.15
Department for Education,DEPARTMENT FOR EDUCATION,23/09/2015,ICT,Assessment and Curriculum and General Qualifications Group,Telecoms facilities and services - mobiles and pagers,VODAFONE CORPORATE,4000216881,710.05
Department for Education,DEPARTMENT FOR EDUCATION,23/09/2015,ICT,Strategic Analysis and Research Group,Telecoms facilities and services - mobiles and pagers,VODAFONE CORPORATE,4000216881,149.20
Department for Education,DEPARTMENT FOR EDUCATION,23/09/2015,ICT,Systems and Accountability Group,Telecoms facilities and services - mobiles and pagers,VODAFONE CORPORATE,4000216881,290.87
Department for Education,DEPARTMENT FOR EDUCATION,23/09/2015,ICT,Academies Delivery Group,Telecoms facilities and services - mobiles and pagers,VODAFONE CORPORATE,4000216881,55.20
Department for Education,DEPARTMENT FOR EDUCATION,23/09/2015,ICT,Infrastructure and Funding Directorate Support,Telecoms facilities and services - mobiles and pagers,VODAFONE CORPORATE,4000216881,33.60
Department for Education,DEPARTMENT FOR EDUCATION,23/09/2015,ICT,Education Funding Group,Telecoms facilities and services - mobiles and pagers,VODAFONE CORPORATE,4000216881,64.24
Department for Education,DEPARTMENT FOR EDUCATION,23/09/2015,ICT,Due Diligence and Counter Extremism Group,Telecoms facilities and services - mobiles and pagers,VODAFONE CORPORATE,4000216881,184.00
Department for Education,DEPARTMENT FOR EDUCATION,23/09/2015,ICT,Closing the Gap Group,Telecoms facilities and services - mobiles and pagers,VODAFONE CORPORATE,4000216881,538.17
Department for Education,DEPARTMENT FOR EDUCATION,23/09/2015,ICT,Teachers and Teaching Group,Telecoms facilities and services - mobiles and pagers,VODAFONE CORPORATE,4000216881,33.60
Department for Education,DEPARTMENT FOR EDUCATION,23/09/2015,ICT,Teachers and Teaching Group,Telecoms facilities and services - mobiles and pagers,VODAFONE CORPORATE,4000216881,554.81
Department for Education,DEPARTMENT FOR EDUCATION,23/09/2015,ICT,Academies Delivery Group,Telecoms facilities and services - mobiles and pagers,VODAFONE CORPORATE,4000216881,3009.31
Department for Education,DEPARTMENT FOR EDUCATION,23/09/2015,ICT,Regional School Commissioners Group,Telecoms facilities and services - mobiles and pagers,VODAFONE CORPORATE,4000216881,33.70
Department for Education,DEPARTMENT FOR EDUCATION,23/09/2015,ICT,Regional School Commissioners Group,Telecoms facilities and services - mobiles and pagers,VODAFONE CORPORATE,4000216881,85.80
Department for Education,DEPARTMENT FOR EDUCATION,23/09/2015,ICT,Regional School Commissioners Group,Telecoms facilities and services - mobiles and pagers,VODAFONE CORPORATE,4000216881,16.80
Department for Education,DEPARTMENT FOR EDUCATION,23/09/2015,ICT,Regional School Commissioners Group,Telecoms facilities and services - mobiles and pagers,VODAFONE CORPORATE,4000216881,62.40
Department for Education,DEPARTMENT FOR EDUCATION,23/09/2015,ICT,Regional School Commissioners Group,Telecoms facilities and services - mobiles and pagers,VODAFONE CORPORATE,4000216881,50.40
Department for Education,DEPARTMENT FOR EDUCATION,23/09/2015,ICT,Regional School Commissioners Group,Telecoms facilities and services - mobiles and pagers,VODAFONE CORPORATE,4000216881,16.80
Department for Education,DEPARTMENT FOR EDUCATION,23/09/2015,ICT,Regional School Commissioners Group,Telecoms facilities and services - mobiles and pagers,VODAFONE CORPORATE,4000216881,51.25
Department for Education,DEPARTMENT FOR EDUCATION,23/09/2015,ICT,Regional School Commissioners Group,Telecoms facilities and services - mobiles and pagers,VODAFONE CORPORATE,4000216881,131.27
Department for Education,DEPARTMENT FOR EDUCATION,23/09/2015,ICT,Regional School Commissioners Group,Telecoms facilities and services - mobiles and pagers,VODAFONE CORPORATE,4000216881,33.60
Department for Education,DEPARTMENT FOR EDUCATION,23/09/2015,ICT,Private Office,Telecoms facilities and services - mobiles and pagers,VODAFONE CORPORATE,4000216881,33.79
Department for Education,DEPARTMENT FOR EDUCATION,23/09/2015,ICT,Private Office,Telecoms facilities and services - mobiles and pagers,VODAFONE CORPORATE,4000216881,50.94
Department for Education,DEPARTMENT FOR EDUCATION,23/09/2015,ICT,Private Office,Telecoms facilities and services - mobiles and pagers,VODAFONE CORPORATE,4000216881,356.21
Department for Education,DEPARTMENT FOR EDUCATION,23/09/2015,ICT,Private Office,Telecoms facilities and services - mobiles and pagers,VODAFONE CORPORATE,4000216881,50.40
Department for Education,DEPARTMENT FOR EDUCATION,23/09/2015,ICT,Private Office,Telecoms facilities and services - mobiles and pagers,VODAFONE CORPORATE,4000216881,67.20
Department for Education,DEPARTMENT FOR EDUCATION,23/09/2015,ICT,Legal Advisers Office,Telecoms facilities and services - mobiles and pagers,VODAFONE CORPORATE,4000216881,220.80
Department for Education,DEPARTMENT FOR EDUCATION,23/09/2015,ICT,Public Communications Group,Telecoms facilities and services - mobiles and pagers,VODAFONE CORPORATE,4000216881,334.76
Department for Education,DEPARTMENT FOR EDUCATION,23/09/2015,ICT,Communications Group,Telecoms facilities and services - mobiles and pagers,VODAFONE CORPORATE,4000216881,794.70
Department for Education,STANDARDS AND TESTING AGENCY,23/09/2015,ICT,Standards and Testing Agency Admin,Telecoms facilities and services - mobiles and pagers,VODAFONE CORPORATE,4000216881,33.60
Department for Education,STANDARDS AND TESTING AGENCY,23/09/2015,ICT,Test Development Division,Telecoms facilities and services - mobiles and pagers,VODAFONE CORPORATE,4000216881,16.94
Department for Education,STANDARDS AND TESTING AGENCY,23/09/2015,ICT,Test Operations Division,Telecoms facilities and services - mobiles and pagers,VODAFONE CORPORATE,4000216881,9.76
Department for Education,NATIONAL COLLEGE FOR TEACHING AND LEADERSHIP AGENCY,23/09/2015,ICT,Operations Directorate,Telecoms facilities and services - mobiles and pagers,VODAFONE CORPORATE,4000216881,16.80
Department for Education,NATIONAL COLLEGE FOR TEACHING AND LEADERSHIP AGENCY,23/09/2015,ICT,Delivery Directorate,Telecoms facilities and services - mobiles and pagers,VODAFONE CORPORATE,4000216881,117.34
Department for Education,EDUCATION FUNDING AGENCY,23/09/2015,ICT,Education Funding Agency Admin,Telecoms facilities and services - mobiles and pagers,VODAFONE CORPORATE,4000216881,33.60
Department for Education,DEPARTMENT FOR EDUCATION,23/09/2015,Grants,Families Group,Grants to local authorities outside aggregate external funding or aggregate exchequer grant,KINGSTON UPON HULL COUNCIL,4000216894,122502.00
Department for Education,DEPARTMENT FOR EDUCATION,23/09/2015,Grants,Families Group,Grants to local authorities outside aggregate external funding or aggregate exchequer grant,NORTH EAST LINCOLNSHIRE COUNCIL,4000216895,227591.00
Department for Education,DEPARTMENT FOR EDUCATION,23/09/2015,Grants,Families Group,Grants to local authorities outside aggregate external funding or aggregate exchequer grant,NORTH YORKSHIRE COUNTY COUNCIL,4000216896,343453.00
Department for Education,DEPARTMENT FOR EDUCATION,23/09/2015,Grants,Families Group,Grants to local authorities outside aggregate external funding or aggregate exchequer grant,HERTFORDSHIRE COUNTY COUNCIL,4000216898,805136.00
Department for Education,DEPARTMENT FOR EDUCATION,23/09/2015,Programme costs,Closing the Gap Group,Funding to deliver policies (excluding consultancy) paid to third parties via a service delivery contract,SOIL ASSOCIATION LTD,4000216901,60714.29
Department for Education,DEPARTMENT FOR EDUCATION,23/09/2015,Grants,Families Group,Grants to local authorities outside aggregate external funding or aggregate exchequer grant,LONDON BOROUGH OF HACKNEY,4000216902,1197846.00
Department for Education,DEPARTMENT FOR EDUCATION,23/09/2015,Grants,Families Group,Grants to local authorities outside aggregate external funding or aggregate exchequer grant,BUCKINGHAMSHIRE COUNTY COUNCIL,4000216903,102907.00
Department for Education,DEPARTMENT FOR EDUCATION,23/09/2015,Grants,Families Group,Grants to local authorities outside aggregate external funding or aggregate exchequer grant,DERBYSHIRE COUNTY COUNCIL,4000216904,122502.00
Department for Education,DEPARTMENT FOR EDUCATION,23/09/2015,Grants,Families Group,Grants to local authorities outside aggregate external funding or aggregate exchequer grant,DURHAM COUNTY COUNCIL,4000216905,568456.00
Department for Education,DEPARTMENT FOR EDUCATION,23/09/2015,Grants,Families Group,Grants to local authorities outside aggregate external funding or aggregate exchequer grant,HAMPSHIRE COUNTY COUNCIL,4000216906,620930.00
Department for Education,EDUCATION FUNDING AGENCY,23/09/2015,ICT,Academies Group,Telecoms facilities and services - mobiles and pagers,VODAFONE CORPORATE,4000216881,167.08
Department for Education,DEPARTMENT FOR EDUCATION,24/09/2015,Programme costs,Adoption and Children in Care Division,Funding to deliver policies (excluding consultancy) paid to third parties via a service delivery contract,CAPGEMINI UK PLC,4000216918,18202.21
Department for Education,EDUCATION FUNDING AGENCY,23/09/2015,ICT,Capital Group,Telecoms facilities and services - mobiles and pagers,VODAFONE CORPORATE,4000216881,499.01
Department for Education,EDUCATION FUNDING AGENCY,23/09/2015,ICT,Education Funding Agency Admin,Telecoms facilities and services - mobiles and pagers,VODAFONE CORPORATE,4000216881,50.24
Department for Education,EDUCATION FUNDING AGENCY,23/09/2015,ICT,Young People Group,Telecoms facilities and services - mobiles and pagers,VODAFONE CORPORATE,4000216881,76.82
Department for Education,DEPARTMENT FOR EDUCATION,08/09/2015,Professional Services Consultancy and Contingent Labour,Information Technology Group,Costs related to temporary workers,RUSSAM GMS LTD,4000215970,7343.88
Department for Education,DEPARTMENT FOR EDUCATION,24/09/2015,Grants,Academies Delivery Group,Grants to educational establishments,THE ELLIOT FOUNDATION ACADEMIES TRUST,4000216940,25000.00
Department for Education,DEPARTMENT FOR EDUCATION,24/09/2015,Grants,Academies Delivery Group,Grants to third sector organisations / not for profit organisations and other businesses,THE GLYN LEARNING FOUNDATION,4000216947,70000.00
Department for Education,DEPARTMENT FOR EDUCATION,24/09/2015,Grants,Academies Delivery Group,Grants to educational establishments,DIOCESE OF NORWICH MULTI ACADEMY TRUST,4000216950,70000.00
Department for Education,DEPARTMENT FOR EDUCATION,24/09/2015,Grants,Academies Delivery Group,Grants to educational establishments,BRIDGE MULTI ACADEMY TRUST,4000216951,25000.00
Department for Education,DEPARTMENT FOR EDUCATION,24/09/2015,Grants,Academies Delivery Group,Grants to educational establishments,VALE ACADEMY TRUST,4000216956,27000.00
Department for Education,DEPARTMENT FOR EDUCATION,24/09/2015,Grants,Families Group,Grants to third sector organisations / not for profit organisations and other businesses,CORNERSTONE TRAINING & SUPPORT LTD,4000216962,36568.00
Department for Education,DEPARTMENT FOR EDUCATION,24/09/2015,Grants,Academies Delivery Group,Grants to third sector organisations / not for profit organisations and other businesses,DIOCESE OF SHREWSBURY EDUCATION TRUST,4000216964,115000.00
Department for Education,DEPARTMENT FOR EDUCATION,24/09/2015,Grants,Academies Delivery Group,Capital grants paid to an educational establishment,DIOCESE OF SHREWSBURY EDUCATION TRUST,4000216964,40000.00
Department for Education,DEPARTMENT FOR EDUCATION,24/09/2015,Grants,Academies Delivery Group,Grants to educational establishments,SAXON HILL SCHOOL,4000216965,25000.00
Department for Education,DEPARTMENT FOR EDUCATION,24/09/2015,Grants,Free School Group,Grants to third sector organisations / not for profit organisations and other businesses,HEARTLANDS COMMUNITY TRUST,4000216966,66000.00
Department for Education,DEPARTMENT FOR EDUCATION,24/09/2015,Grants,Adoption and Children in Care Division,Grants to third sector organisations / not for profit organisations and other businesses,CONSORTIUM OF VOLUNTARY ADOPTION AGENCIES UK LTD,4000216968,485426.00
Department for Education,DEPARTMENT FOR EDUCATION,24/09/2015,Grants,Academies Delivery Group,Grants to educational establishments,AVANTI COURT PRIMARY SCHOOL,4000216975,25000.00
Department for Education,DEPARTMENT FOR EDUCATION,24/09/2015,Grants,Academies Delivery Group,Grants to third sector organisations / not for profit organisations and other businesses,The Westbrook Trust,4000216976,70000.00
Department for Education,DEPARTMENT FOR EDUCATION,08/09/2015,Professional Services Consultancy and Contingent Labour,Information Technology Group,Costs related to temporary workers,RUSSAM GMS LTD,4000215970,53817.60
Department for Education,DEPARTMENT FOR EDUCATION,11/09/2015,Professional Services Consultancy and Contingent Labour,Information Technology Group,Costs related to temporary workers,RUSSAM GMS LTD,4000216211,56584.08
Department for Education,DEPARTMENT FOR EDUCATION,11/09/2015,Professional Services Consultancy and Contingent Labour,Information Technology Group,Costs related to temporary workers,RUSSAM GMS LTD,4000216211,25592.64
Department for Education,DEPARTMENT FOR EDUCATION,29/09/2015,Grants,Free School Group,Grants to educational establishments,NEW SCHOOLS NETWORK,4000217009,89250.63
Department for Education,DEPARTMENT FOR EDUCATION,29/09/2015,Grants,"Childcare, Special Educational Needs and Children's Strategy Group",Grants to third sector organisations / not for profit organisations and other businesses,INSTITUTE OF WELLBEING LTD,4000217032,35543.81
Department for Education,DEPARTMENT FOR EDUCATION,07/09/2015,Professional Services Other,Finance and Commercial Group,Shared corporate accounting services,SHARED SERVICES CONNECTED LTD,4000215834,268388.05
Department for Education,DEPARTMENT FOR EDUCATION,21/09/2015,ICT,Information Technology Group,Telecoms facilities and services - telecom rentals,BRITISH TELECOMMUNICATIONS PLC,1001728,81252.76
Department for Education,DEPARTMENT FOR EDUCATION,29/09/2015,Personnel Related,Human Resources Group,Childcare expenses paid to staff,FIDELITI LTD,4000217039,73580.18
Department for Education,DEPARTMENT FOR EDUCATION,29/09/2015,Personnel Related,Human Resources Group,Childcare services provided for staff including the management fee and subsidy costs,FIDELITI LTD,4000217039,353.18
Department for Education,DEPARTMENT FOR EDUCATION,07/09/2015,Professional Services Other,Finance and Commercial Group,Shared corporate payroll services,SHARED SERVICES CONNECTED LTD,4000215834,1597.67
Department for Education,DEPARTMENT FOR EDUCATION,30/09/2015,Grants,Families Group,Grants to third sector organisations / not for profit organisations and other businesses,THE FOSTERING NETWORK,4000217078,58630.14
Department for Education,DEPARTMENT FOR EDUCATION,30/09/2015,Programme costs,Adoption and Children in Care Division,Funding to deliver policies (excluding consultancy) paid to third parties via a service delivery contract,CONSORTIUM OF VOLUNTARY ADOPTION AGENCIES UK LTD,4000217106,33600.00
Department for Education,DEPARTMENT FOR EDUCATION,30/09/2015,Grants,Children's Services and Departmental Strategy Safeguarding Group,Grants to third sector organisations / not for profit organisations and other businesses,NSPCC,4000217126,286979.00
Department for Education,DEPARTMENT FOR EDUCATION,30/09/2015,Grants,Assessment and Curriculum and General Qualifications Group,Grants to educational establishments,BOURNVILLE JUNIOR SCHOOL,4000217127,30824.95
Department for Education,DEPARTMENT FOR EDUCATION,18/09/2015,Miscellaneous Expenditure,Finance and Commercial Group,Property claim paid out to an academy trust by Gallagher Bassett on behalf of the Department as part of the Department's Risk Protection Arrangement (RPA).,N/A � Risk Protection Arrangement (RPA) member,005921-000252-RB-01,26026.75
Department for Education,DEPARTMENT FOR EDUCATION,30/09/2015,Redactions,Various,"The total redacted transactions, including funding payment to Education Funding Agency. See Technical Notes for further information.",EDUCATION FUNDING AGENCY,Various,4945733064.00
